Department,Entity,Date of Payment,Expense Type,Expense Area,Supplier,Transaction Number,Net Total
"Department for Business, Innovation and Skills","Department for Business, Innovation and Skills",05/04/2011,Car Hire and Leasing,Knowledge and Innovation Group - Government Office For Science,GOVERNMENT CAR AND DESPATCH AGENCY,1024134,31.22
"Department for Business, Innovation and Skills","Department for Business, Innovation and Skills",06/04/2011,Taxis,Knowledge and Innovation Group - Government Office For Science,ADDISON LEE plc,1024242,1010.4
"Department for Business, Innovation and Skills","Department for Business, Innovation and Skills",07/04/2011,Car Hire and Leasing,Knowledge and Innovation Group - Government Office For Science,GOVERNMENT CAR AND DESPATCH AGENCY,1024382,38.57
"Department for Business, Innovation and Skills","Department for Business, Innovation and Skills",07/04/2011,Car Hire and Leasing,Knowledge and Innovation Group - Government Office For Science,GOVERNMENT CAR AND DESPATCH AGENCY,1024383,1181.82
"Department for Business, Innovation and Skills","Department for Business, Innovation and Skills",07/04/2011,Car Hire and Leasing,Knowledge and Innovation Group - Government Office For Science,GOVERNMENT CAR AND DESPATCH AGENCY,1024384,50.22
"Department for Business, Innovation and Skills","Department for Business, Innovation and Skills",08/04/2011,Publications,Knowledge and Innovation Group - Government Office For Science,JONES YARRELL LEADENHALL,1024417,62.5
"Department for Business, Innovation and Skills","Department for Business, Innovation and Skills",08/04/2011,Publications,Knowledge and Innovation Group - Government Office For Science,JONES YARRELL LEADENHALL,1024419,70.13
"Department for Business, Innovation and Skills","Department for Business, Innovation and Skills",19/04/2011,Publications,Knowledge and Innovation Group - Government Office For Science,JONES YARRELL LEADENHALL,1024552,33.81
"Department for Business, Innovation and Skills","Department for Business, Innovation and Skills",19/04/2011,Publications,Knowledge and Innovation Group - Government Office For Science,JONES YARRELL LEADENHALL,1024552,32.32
"Department for Business, Innovation and Skills","Department for Business, Innovation and Skills",19/04/2011,Publications,Knowledge and Innovation Group - Government Office For Science,JONES YARRELL LEADENHALL,1024552,4.93
"Department for Business, Innovation and Skills","Department for Business, Innovation and Skills",14/04/2011,Car Hire and Leasing,Knowledge and Innovation Group - Government Office For Science,GOVERNMENT CAR AND DESPATCH AGENCY,1024932,132.25
"Department for Business, Innovation and Skills","Department for Business, Innovation and Skills",14/04/2011,Car Hire and Leasing,Knowledge and Innovation Group - Government Office For Science,GOVERNMENT CAR AND DESPATCH AGENCY,1024933,569.88
"Department for Business, Innovation and Skills","Department for Business, Innovation and Skills",13/04/2011,Other Telephone Costs,Knowledge and Innovation Group - Research Base,PREMIERE CONFERENCING IRELAND LTD,1024846,33.13
"Department for Business, Innovation and Skills","Department for Business, Innovation and Skills",01/04/2011,Rail Fares Overseas,Knowledge and Innovation Group - Research Base,"Personal Expense, Name Witheld.",10276891,1.54
"Department for Business, Innovation and Skills","Department for Business, Innovation and Skills",01/04/2011,Subsistence Payments Overseas,Knowledge and Innovation Group - Research Base,"Personal Expense, Name Witheld.",10276891,19.6
"Department for Business, Innovation and Skills","Department for Business, Innovation and Skills",01/04/2011,Other Overseas Travel & Subsistence,Knowledge and Innovation Group - Research Base,"Personal Expense, Name Witheld.",10276891,20
"Department for Business, Innovation and Skills","Department for Business, Innovation and Skills",11/04/2011,Rail Fares Overseas,Knowledge and Innovation Group - Research Base,"Personal Expense, Name Witheld.",10277045,2.5
"Department for Business, Innovation and Skills","Department for Business, Innovation and Skills",11/04/2011,Subsistence Payments Overseas,Knowledge and Innovation Group - Research Base,"Personal Expense, Name Witheld.",10277045,29.33
"Department for Business, Innovation and Skills","Department for Business, Innovation and Skills",11/04/2011,Other Overseas Travel & Subsistence,Knowledge and Innovation Group - Research Base,"Personal Expense, Name Witheld.",10277045,20
"Department for Business, Innovation and Skills","Department for Business, Innovation and Skills",13/04/2011,Rail Fares,Knowledge and Innovation Group - Research Base,"Personal Expense, Name Witheld.",10277077,1.9
"Department for Business, Innovation and Skills","Department for Business, Innovation and Skills",13/04/2011,Taxis,Knowledge and Innovation Group - Research Base,"Personal Expense, Name Witheld.",10277077,10
"Department for Business, Innovation and Skills","Department for Business, Innovation and Skills",15/04/2011,Other UK Travel & Subsistence,Knowledge and Innovation Group - Research Base,"Personal Expense, Name Witheld.",10277143,12
"Department for Business, Innovation and Skills","Department for Business, Innovation and Skills",15/04/2011,Other Overseas Travel & Subsistence,Knowledge and Innovation Group - Research Base,"Personal Expense, Name Witheld.",10277143,40
"Department for Business, Innovation and Skills","Department for Business, Innovation and Skills",18/04/2011,Rail Fares,Knowledge and Innovation Group - Research Base,"Personal Expense, Name Witheld.",10277175,28.8
"Department for Business, Innovation and Skills","Department for Business, Innovation and Skills",18/04/2011,Other UK Travel & Subsistence,Knowledge and Innovation Group - Research Base,"Personal Expense, Name Witheld.",10277175,3.55
"Department for Business, Innovation and Skills","Department for Business, Innovation and Skills",18/04/2011,Hotels Overseas,Knowledge and Innovation Group - Research Base,"Personal Expense, Name Witheld.",10277175,78.11
"Department for Business, Innovation and Skills","Department for Business, Innovation and Skills",18/04/2011,Subsistence Payments Overseas,Knowledge and Innovation Group - Research Base,"Personal Expense, Name Witheld.",10277175,10
"Department for Business, Innovation and Skills","Department for Business, Innovation and Skills",19/04/2011,Rail Fares Overseas,Knowledge and Innovation Group - Research Base,"Personal Expense, Name Witheld.",10277190,3.46
"Department for Business, Innovation and Skills","Department for Business, Innovation and Skills",19/04/2011,Air Fares Overseas,Knowledge and Innovation Group - Research Base,"Personal Expense, Name Witheld.",10277190,14.61
"Department for Business, Innovation and Skills","Department for Business, Innovation and Skills",19/04/2011,Subsistence Payments Overseas,Knowledge and Innovation Group - Research Base,"Personal Expense, Name Witheld.",10277190,10
"Department for Business, Innovation and Skills","Department for Business, Innovation and Skills",19/04/2011,Other Overseas Travel & Subsistence,Knowledge and Innovation Group - Research Base,"Personal Expense, Name Witheld.",10277190,61.06
"Department for Business, Innovation and Skills","Department for Business, Innovation and Skills",26/04/2011,Rail Fares,Knowledge and Innovation Group - Research Base,"Personal Expense, Name Witheld.",10277259,8
"Department for Business, Innovation and Skills","Department for Business, Innovation and Skills",26/04/2011,Mileage Allowances,Knowledge and Innovation Group - Research Base,"Personal Expense, Name Witheld.",10277259,1.2
"Department for Business, Innovation and Skills","Department for Business, Innovation and Skills",26/04/2011,Hotels Overseas,Knowledge and Innovation Group - Research Base,"Personal Expense, Name Witheld.",10277259,9.73
"Department for Business, Innovation and Skills","Department for Business, Innovation and Skills",26/04/2011,Subsistence Payments Overseas,Knowledge and Innovation Group - Research Base,"Personal Expense, Name Witheld.",10277259,34.66
"Department for Business, Innovation and Skills","Department for Business, Innovation and Skills",26/04/2011,Other Overseas Travel & Subsistence,Knowledge and Innovation Group - Research Base,"Personal Expense, Name Witheld.",10277259,10.02
"Department for Business, Innovation and Skills","Department for Business, Innovation and Skills",26/04/2011,Rail Fares,Knowledge and Innovation Group - Research Base,"Personal Expense, Name Witheld.",10277260,8
"Department for Business, Innovation and Skills","Department for Business, Innovation and Skills",26/04/2011,Mileage Allowances,Knowledge and Innovation Group - Research Base,"Personal Expense, Name Witheld.",10277260,2.4
"Department for Business, Innovation and Skills","Department for Business, Innovation and Skills",26/04/2011,Rail Fares Overseas,Knowledge and Innovation Group - Research Base,"Personal Expense, Name Witheld.",10277260,11.26
"Department for Business, Innovation and Skills","Department for Business, Innovation and Skills",26/04/2011,Hotels Overseas,Knowledge and Innovation Group - Research Base,"Personal Expense, Name Witheld.",10277260,35.94
"Department for Business, Innovation and Skills","Department for Business, Innovation and Skills",26/04/2011,Subsistence Payments Overseas,Knowledge and Innovation Group - Research Base,"Personal Expense, Name Witheld.",10277260,5.93
"Department for Business, Innovation and Skills","Department for Business, Innovation and Skills",26/04/2011,Other Overseas Travel & Subsistence,Knowledge and Innovation Group - Research Base,"Personal Expense, Name Witheld.",10277260,20.01
"Department for Business, Innovation and Skills","Department for Business, Innovation and Skills",27/04/2011,Subsistence Payments Overseas,Knowledge and Innovation Group - Research Base,"Personal Expense, Name Witheld.",10277290,52.51
"Department for Business, Innovation and Skills","Department for Business, Innovation and Skills",27/04/2011,Rail Fares,Knowledge and Innovation Group - Research Base,"Personal Expense, Name Witheld.",10277296,75.75
"Department for Business, Innovation and Skills","Department for Business, Innovation and Skills",27/04/2011,Subsistence Payments,Knowledge and Innovation Group - Research Base,"Personal Expense, Name Witheld.",10277296,2.1
"Department for Business, Innovation and Skills","Department for Business, Innovation and Skills",27/04/2011,Rail Fares,Knowledge and Innovation Group - Research Base,"Personal Expense, Name Witheld.",10277300,11.1
"Department for Business, Innovation and Skills","Department for Business, Innovation and Skills",27/04/2011,Taxis Overseas,Knowledge and Innovation Group - Research Base,"Personal Expense, Name Witheld.",10277300,39.65
"Department for Business, Innovation and Skills","Department for Business, Innovation and Skills",27/04/2011,Hotels Overseas,Knowledge and Innovation Group - Research Base,"Personal Expense, Name Witheld.",10277300,134.5
"Department for Business, Innovation and Skills","Department for Business, Innovation and Skills",27/04/2011,Other Overseas Travel & Subsistence,Knowledge and Innovation Group - Research Base,"Personal Expense, Name Witheld.",10277300,10
"Department for Business, Innovation and Skills","Department for Business, Innovation and Skills",28/04/2011,Rail Fares,Knowledge and Innovation Group - Research Base,"Personal Expense, Name Witheld.",10277315,2.6
"Department for Business, Innovation and Skills","Department for Business, Innovation and Skills",28/04/2011,Other UK Travel & Subsistence,Knowledge and Innovation Group - Research Base,"Personal Expense, Name Witheld.",10277315,5.24
"Department for Business, Innovation and Skills","Department for Business, Innovation and Skills",28/04/2011,Rail Fares Overseas,Knowledge and Innovation Group - Research Base,"Personal Expense, Name Witheld.",10277315,2.66
"Department for Business, Innovation and Skills","Department for Business, Innovation and Skills",28/04/2011,Hotels Overseas,Knowledge and Innovation Group - Research Base,"Personal Expense, Name Witheld.",10277315,125.21
"Department for Business, Innovation and Skills","Department for Business, Innovation and Skills",28/04/2011,Subsistence Payments Overseas,Knowledge and Innovation Group - Research Base,"Personal Expense, Name Witheld.",10277315,28.62
"Department for Business, Innovation and Skills","Department for Business, Innovation and Skills",11/04/2011,Hotels- Overseas  (Programme),Knowledge and Innovation Group - Research Base,FOREIGN AND COMMONWEALTH OFFICE (FCO),1021684,603.58
"Department for Business, Innovation and Skills","Department for Business, Innovation and Skills",11/04/2011,Hotels (Programme),Knowledge and Innovation Group - Research Base,FOREIGN AND COMMONWEALTH OFFICE (FCO),1021690,573.39
"Department for Business, Innovation and Skills","Department for Business, Innovation and Skills",11/04/2011,Hotels- Overseas  (Programme),Knowledge and Innovation Group - Research Base,FOREIGN AND COMMONWEALTH OFFICE (FCO),1021690,851.22
"Department for Business, Innovation and Skills","Department for Business, Innovation and Skills",11/04/2011,Hotels- Overseas  (Programme),Knowledge and Innovation Group - Research Base,FOREIGN AND COMMONWEALTH OFFICE (FCO),1021691,2837.97
"Department for Business, Innovation and Skills","Department for Business, Innovation and Skills",11/04/2011,Hotels- Overseas  (Programme),Knowledge and Innovation Group - Research Base,FOREIGN AND COMMONWEALTH OFFICE (FCO),1021691,603.58
"Department for Business, Innovation and Skills","Department for Business, Innovation and Skills",11/04/2011,Hotels (Programme),Knowledge and Innovation Group - Research Base,FOREIGN AND COMMONWEALTH OFFICE (FCO),1021693,460.17
"Department for Business, Innovation and Skills","Department for Business, Innovation and Skills",11/04/2011,Subsistence Payments- Overseas (Programme),Knowledge and Innovation Group - Research Base,FOREIGN AND COMMONWEALTH OFFICE (FCO),1021694,328.69
"Department for Business, Innovation and Skills","Department for Business, Innovation and Skills",11/04/2011,Subsistence Payments- Overseas (Programme),Knowledge and Innovation Group - Research Base,FOREIGN AND COMMONWEALTH OFFICE (FCO),1021695,460.17
"Department for Business, Innovation and Skills","Department for Business, Innovation and Skills",11/04/2011,Hotels (Programme),Knowledge and Innovation Group - Research Base,FOREIGN AND COMMONWEALTH OFFICE (FCO),1021696,262.95
"Department for Business, Innovation and Skills","Department for Business, Innovation and Skills",11/04/2011,Subsistence Payments- Overseas (Programme),Knowledge and Innovation Group - Research Base,FOREIGN AND COMMONWEALTH OFFICE (FCO),1021698,460.17
"Department for Business, Innovation and Skills","Department for Business, Innovation and Skills",11/04/2011,Subsistence Payments- Overseas (Programme),Knowledge and Innovation Group - Research Base,FOREIGN AND COMMONWEALTH OFFICE (FCO),1021700,394.43
"Department for Business, Innovation and Skills","Department for Business, Innovation and Skills",11/04/2011,Hotels (Programme),Knowledge and Innovation Group - Research Base,FOREIGN AND COMMONWEALTH OFFICE (FCO),1021701,10.77
"Department for Business, Innovation and Skills","Department for Business, Innovation and Skills",11/04/2011,Subsistence Payments- Overseas (Programme),Knowledge and Innovation Group - Research Base,FOREIGN AND COMMONWEALTH OFFICE (FCO),1021701,449.4
"Department for Business, Innovation and Skills","Department for Business, Innovation and Skills",11/04/2011,Air Fares  - Overseas (Programme),Knowledge and Innovation Group - Research Base,FOREIGN AND COMMONWEALTH OFFICE (FCO),1021703,792.85
"Department for Business, Innovation and Skills","Department for Business, Innovation and Skills",11/04/2011,Air Fares  - Overseas (Programme),Knowledge and Innovation Group - Research Base,FOREIGN AND COMMONWEALTH OFFICE (FCO),1021704,982.96
"Department for Business, Innovation and Skills","Department for Business, Innovation and Skills",11/04/2011,Media and Design Services,Knowledge and Innovation Group - Research Base,FOREIGN AND COMMONWEALTH OFFICE (FCO),1021706,283.89
"Department for Business, Innovation and Skills","Department for Business, Innovation and Skills",11/04/2011,Subsistence Payments- Overseas (Programme),Knowledge and Innovation Group - Research Base,FOREIGN AND COMMONWEALTH OFFICE (FCO),1021708,409.94
"Department for Business, Innovation and Skills","Department for Business, Innovation and Skills",11/04/2011,Subsistence Payments- Overseas (Programme),Knowledge and Innovation Group - Research Base,FOREIGN AND COMMONWEALTH OFFICE (FCO),1021709,409.94
"Department for Business, Innovation and Skills","Department for Business, Innovation and Skills",11/04/2011,Printing (Programme),Knowledge and Innovation Group - Research Base,FOREIGN AND COMMONWEALTH OFFICE (FCO),1021712,110.86
"Department for Business, Innovation and Skills","Department for Business, Innovation and Skills",11/04/2011,Entertaining Overseas (Programme),Knowledge and Innovation Group - Research Base,FOREIGN AND COMMONWEALTH OFFICE (FCO),1021714,37.8
"Department for Business, Innovation and Skills","Department for Business, Innovation and Skills",11/04/2011,Others UK Travel & Subsistence (Programme),Knowledge and Innovation Group - Research Base,FOREIGN AND COMMONWEALTH OFFICE (FCO),1021715,19.94
"Department for Business, Innovation and Skills","Department for Business, Innovation and Skills",11/04/2011,Hotels- Overseas  (Programme),Knowledge and Innovation Group - Research Base,FOREIGN AND COMMONWEALTH OFFICE (FCO),1021718,2603.43
"Department for Business, Innovation and Skills","Department for Business, Innovation and Skills",11/04/2011,Interpreters,Knowledge and Innovation Group - Research Base,FOREIGN AND COMMONWEALTH OFFICE (FCO),1021721,548.09
"Department for Business, Innovation and Skills","Department for Business, Innovation and Skills",11/04/2011,Hotels (Programme),Knowledge and Innovation Group - Research Base,FOREIGN AND COMMONWEALTH OFFICE (FCO),1021723,600
"Department for Business, Innovation and Skills","Department for Business, Innovation and Skills",11/04/2011,Air Fares  - Overseas (Programme),Knowledge and Innovation Group - Research Base,FOREIGN AND COMMONWEALTH OFFICE (FCO),1021723,375.74
"Department for Business, Innovation and Skills","Department for Business, Innovation and Skills",11/04/2011,Hotels- Overseas  (Programme),Knowledge and Innovation Group - Research Base,FOREIGN AND COMMONWEALTH OFFICE (FCO),1021723,2800
"Department for Business, Innovation and Skills","Department for Business, Innovation and Skills",11/04/2011,Hotels- Overseas  (Programme),Knowledge and Innovation Group - Research Base,FOREIGN AND COMMONWEALTH OFFICE (FCO),1021725,53.63
"Department for Business, Innovation and Skills","Department for Business, Innovation and Skills",11/04/2011,Translation Services (Programme),Knowledge and Innovation Group - Research Base,FOREIGN AND COMMONWEALTH OFFICE (FCO),1021725,370
"Department for Business, Innovation and Skills","Department for Business, Innovation and Skills",11/04/2011,Air Fares  - Overseas (Programme),Knowledge and Innovation Group - Research Base,FOREIGN AND COMMONWEALTH OFFICE (FCO),1021727,578.88
"Department for Business, Innovation and Skills","Department for Business, Innovation and Skills",11/04/2011,Translation Services (Programme),Knowledge and Innovation Group - Research Base,FOREIGN AND COMMONWEALTH OFFICE (FCO),1021727,700
"Department for Business, Innovation and Skills","Department for Business, Innovation and Skills",11/04/2011,Air Fares  - Overseas (Programme),Knowledge and Innovation Group - Research Base,FOREIGN AND COMMONWEALTH OFFICE (FCO),1021728,146.72
"Department for Business, Innovation and Skills","Department for Business, Innovation and Skills",11/04/2011,Entertaining Overseas (Programme),Knowledge and Innovation Group - Research Base,FOREIGN AND COMMONWEALTH OFFICE (FCO),1021728,7.57
"Department for Business, Innovation and Skills","Department for Business, Innovation and Skills",11/04/2011,Printing (Programme),Knowledge and Innovation Group - Research Base,FOREIGN AND COMMONWEALTH OFFICE (FCO),1021728,392.43
"Department for Business, Innovation and Skills","Department for Business, Innovation and Skills",11/04/2011,Air Fares  - Overseas (Programme),Knowledge and Innovation Group - Research Base,FOREIGN AND COMMONWEALTH OFFICE (FCO),1021730,6611.58
"Department for Business, Innovation and Skills","Department for Business, Innovation and Skills",11/04/2011,Air Fares  - Overseas (Programme),Knowledge and Innovation Group - Research Base,FOREIGN AND COMMONWEALTH OFFICE (FCO),1021732,5348.15
"Department for Business, Innovation and Skills","Department for Business, Innovation and Skills",11/04/2011,Rail Fares - Overseas (Programme),Knowledge and Innovation Group - Research Base,FOREIGN AND COMMONWEALTH OFFICE (FCO),1021733,3466.5
"Department for Business, Innovation and Skills","Department for Business, Innovation and Skills",11/04/2011,Hotels- Overseas  (Programme),Knowledge and Innovation Group - Research Base,FOREIGN AND COMMONWEALTH OFFICE (FCO),1021733,3900
"Department for Business, Innovation and Skills","Department for Business, Innovation and Skills",11/04/2011,Subsistence Payments- Overseas (Programme),Knowledge and Innovation Group - Research Base,FOREIGN AND COMMONWEALTH OFFICE (FCO),1021734,170
"Department for Business, Innovation and Skills","Department for Business, Innovation and Skills",11/04/2011,Other Overseas Travel & Subsistence (Programme),Knowledge and Innovation Group - Research Base,FOREIGN AND COMMONWEALTH OFFICE (FCO),1021734,227.47
"Department for Business, Innovation and Skills","Department for Business, Innovation and Skills",11/04/2011,Entertaining Overseas (Programme),Knowledge and Innovation Group - Research Base,FOREIGN AND COMMONWEALTH OFFICE (FCO),1021735,196.07
"Department for Business, Innovation and Skills","Department for Business, Innovation and Skills",11/04/2011,Hotels- Overseas  (Programme),Knowledge and Innovation Group - Research Base,FOREIGN AND COMMONWEALTH OFFICE (FCO),1021736,2442.96
"Department for Business, Innovation and Skills","Department for Business, Innovation and Skills",11/04/2011,Air Fares  - Overseas (Programme),Knowledge and Innovation Group - Research Base,FOREIGN AND COMMONWEALTH OFFICE (FCO),1021737,434.36
"Department for Business, Innovation and Skills","Department for Business, Innovation and Skills",11/04/2011,Air Fares  - Overseas (Programme),Knowledge and Innovation Group - Research Base,FOREIGN AND COMMONWEALTH OFFICE (FCO),1021738,970.34
"Department for Business, Innovation and Skills","Department for Business, Innovation and Skills",11/04/2011,Air Fares  - Overseas (Programme),Knowledge and Innovation Group - Research Base,FOREIGN AND COMMONWEALTH OFFICE (FCO),1021739,2322.75
"Department for Business, Innovation and Skills","Department for Business, Innovation and Skills",11/04/2011,Entertaining Overseas (Programme),Knowledge and Innovation Group - Research Base,FOREIGN AND COMMONWEALTH OFFICE (FCO),1021741,476.34
"Department for Business, Innovation and Skills","Department for Business, Innovation and Skills",11/04/2011,Air Fares  - Overseas (Programme),Knowledge and Innovation Group - Research Base,FOREIGN AND COMMONWEALTH OFFICE (FCO),1021743,201.39
"Department for Business, Innovation and Skills","Department for Business, Innovation and Skills",11/04/2011,Air Fares  - Overseas (Programme),Knowledge and Innovation Group - Research Base,FOREIGN AND COMMONWEALTH OFFICE (FCO),1021744,1470.74
"Department for Business, Innovation and Skills","Department for Business, Innovation and Skills",13/04/2011,Hotels (Programme),Knowledge and Innovation Group - Research Base,FOREIGN AND COMMONWEALTH OFFICE (FCO),1021854,12.54
"Department for Business, Innovation and Skills","Department for Business, Innovation and Skills",13/04/2011,Air Fares  - Overseas (Programme),Knowledge and Innovation Group - Research Base,FOREIGN AND COMMONWEALTH OFFICE (FCO),1021856,322.85
"Department for Business, Innovation and Skills","Department for Business, Innovation and Skills",13/04/2011,Mileage Allowances - Overseas (Programme),Knowledge and Innovation Group - Research Base,FOREIGN AND COMMONWEALTH OFFICE (FCO),1021860,3363.62
"Department for Business, Innovation and Skills","Department for Business, Innovation and Skills",13/04/2011,Hotels- Overseas  (Programme),Knowledge and Innovation Group - Research Base,FOREIGN AND COMMONWEALTH OFFICE (FCO),1021866,5827.48
"Department for Business, Innovation and Skills","Department for Business, Innovation and Skills",13/04/2011,Subsistence Payments- Overseas (Programme),Knowledge and Innovation Group - Research Base,FOREIGN AND COMMONWEALTH OFFICE (FCO),1021866,15000
"Department for Business, Innovation and Skills","Department for Business, Innovation and Skills",13/04/2011,Hotels (Programme),Knowledge and Innovation Group - Research Base,FOREIGN AND COMMONWEALTH OFFICE (FCO),1021867,48.43
"Department for Business, Innovation and Skills","Department for Business, Innovation and Skills",13/04/2011,Air Fares  - Overseas (Programme),Knowledge and Innovation Group - Research Base,FOREIGN AND COMMONWEALTH OFFICE (FCO),1021869,489.26
"Department for Business, Innovation and Skills","Department for Business, Innovation and Skills",13/04/2011,Air Fares  - Overseas (Programme),Knowledge and Innovation Group - Research Base,FOREIGN AND COMMONWEALTH OFFICE (FCO),1021871,28223.5
"Department for Business, Innovation and Skills","Department for Business, Innovation and Skills",13/04/2011,Hotels (Programme),Knowledge and Innovation Group - Research Base,FOREIGN AND COMMONWEALTH OFFICE (FCO),1021872,6.72
"Department for Business, Innovation and Skills","Department for Business, Innovation and Skills",13/04/2011,Air Fares  - Overseas (Programme),Knowledge and Innovation Group - Research Base,FOREIGN AND COMMONWEALTH OFFICE (FCO),1021872,3012.35
"Department for Business, Innovation and Skills","Department for Business, Innovation and Skills",13/04/2011,Subsistence Payments- Overseas (Programme),Knowledge and Innovation Group - Research Base,FOREIGN AND COMMONWEALTH OFFICE (FCO),1021873,1038.83
"Department for Business, Innovation and Skills","Department for Business, Innovation and Skills",13/04/2011,Hotels (Programme),Knowledge and Innovation Group - Research Base,FOREIGN AND COMMONWEALTH OFFICE (FCO),1021881,56.69
"Department for Business, Innovation and Skills","Department for Business, Innovation and Skills",13/04/2011,Hotels (Programme),Knowledge and Innovation Group - Research Base,FOREIGN AND COMMONWEALTH OFFICE (FCO),1021882,256.46
"Department for Business, Innovation and Skills","Department for Business, Innovation and Skills",13/04/2011,Air Fares  - Overseas (Programme),Knowledge and Innovation Group - Research Base,FOREIGN AND COMMONWEALTH OFFICE (FCO),1021884,472.76
"Department for Business, Innovation and Skills","Department for Business, Innovation and Skills",13/04/2011,Air Fares  - Overseas (Programme),Knowledge and Innovation Group - Research Base,FOREIGN AND COMMONWEALTH OFFICE (FCO),1021885,406.81
"Department for Business, Innovation and Skills","Department for Business, Innovation and Skills",13/04/2011,Air Fares  - Overseas (Programme),Knowledge and Innovation Group - Research Base,FOREIGN AND COMMONWEALTH OFFICE (FCO),1021888,557.52
"Department for Business, Innovation and Skills","Department for Business, Innovation and Skills",13/04/2011,Hotels- Overseas  (Programme),Knowledge and Innovation Group - Research Base,FOREIGN AND COMMONWEALTH OFFICE (FCO),1021889,669.03
"Department for Business, Innovation and Skills","Department for Business, Innovation and Skills",13/04/2011,Air Fares  - Overseas (Programme),Knowledge and Innovation Group - Research Base,FOREIGN AND COMMONWEALTH OFFICE (FCO),1021892,104.36
"Department for Business, Innovation and Skills","Department for Business, Innovation and Skills",13/04/2011,Entertaining Overseas (Programme),Knowledge and Innovation Group - Research Base,FOREIGN AND COMMONWEALTH OFFICE (FCO),1021892,74.05
"Department for Business, Innovation and Skills","Department for Business, Innovation and Skills",13/04/2011,Air Fares  - Overseas (Programme),Knowledge and Innovation Group - Research Base,FOREIGN AND COMMONWEALTH OFFICE (FCO),1021893,1152.21
"Department for Business, Innovation and Skills","Department for Business, Innovation and Skills",13/04/2011,Entertaining Overseas (Programme),Knowledge and Innovation Group - Research Base,FOREIGN AND COMMONWEALTH OFFICE (FCO),1021894,828.35
"Department for Business, Innovation and Skills","Department for Business, Innovation and Skills",13/04/2011,Entertaining Overseas (Programme),Knowledge and Innovation Group - Research Base,FOREIGN AND COMMONWEALTH OFFICE (FCO),1021896,929.54
"Department for Business, Innovation and Skills","Department for Business, Innovation and Skills",13/04/2011,Printing (Programme),Knowledge and Innovation Group - Research Base,FOREIGN AND COMMONWEALTH OFFICE (FCO),1021897,199.12
"Department for Business, Innovation and Skills","Department for Business, Innovation and Skills",13/04/2011,Printing (Programme),Knowledge and Innovation Group - Research Base,FOREIGN AND COMMONWEALTH OFFICE (FCO),1021898,33.51
"Department for Business, Innovation and Skills","Department for Business, Innovation and Skills",13/04/2011,Printing (Programme),Knowledge and Innovation Group - Research Base,FOREIGN AND COMMONWEALTH OFFICE (FCO),1021899,58.92
"Department for Business, Innovation and Skills","Department for Business, Innovation and Skills",13/04/2011,Air Fares  - Overseas (Programme),Knowledge and Innovation Group - Research Base,FOREIGN AND COMMONWEALTH OFFICE (FCO),1021901,7898.25
"Department for Business, Innovation and Skills","Department for Business, Innovation and Skills",13/04/2011,Taxis- Overseas (Programme),Knowledge and Innovation Group - Research Base,FOREIGN AND COMMONWEALTH OFFICE (FCO),1021908,17.33
"Department for Business, Innovation and Skills","Department for Business, Innovation and Skills",13/04/2011,Air Fares  - Overseas (Programme),Knowledge and Innovation Group - Research Base,FOREIGN AND COMMONWEALTH OFFICE (FCO),1021909,285.53
"Department for Business, Innovation and Skills","Department for Business, Innovation and Skills",13/04/2011,Air Fares  - Overseas (Programme),Knowledge and Innovation Group - Research Base,FOREIGN AND COMMONWEALTH OFFICE (FCO),1021910,12.62
"Department for Business, Innovation and Skills","Department for Business, Innovation and Skills",13/04/2011,Taxis- Overseas (Programme),Knowledge and Innovation Group - Research Base,FOREIGN AND COMMONWEALTH OFFICE (FCO),1021911,4.42
"Department for Business, Innovation and Skills","Department for Business, Innovation and Skills",13/04/2011,Taxis- Overseas (Programme),Knowledge and Innovation Group - Research Base,FOREIGN AND COMMONWEALTH OFFICE (FCO),1021913,22.09
"Department for Business, Innovation and Skills","Department for Business, Innovation and Skills",13/04/2011,Taxis- Overseas (Programme),Knowledge and Innovation Group - Research Base,FOREIGN AND COMMONWEALTH OFFICE (FCO),1021914,5.05
"Department for Business, Innovation and Skills","Department for Business, Innovation and Skills",13/04/2011,Taxis- Overseas (Programme),Knowledge and Innovation Group - Research Base,FOREIGN AND COMMONWEALTH OFFICE (FCO),1021915,4.42
"Department for Business, Innovation and Skills","Department for Business, Innovation and Skills",13/04/2011,Taxis- Overseas (Programme),Knowledge and Innovation Group - Research Base,FOREIGN AND COMMONWEALTH OFFICE (FCO),1021917,10.73
"Department for Business, Innovation and Skills","Department for Business, Innovation and Skills",13/04/2011,Taxis- Overseas (Programme),Knowledge and Innovation Group - Research Base,FOREIGN AND COMMONWEALTH OFFICE (FCO),1021918,17.04
"Department for Business, Innovation and Skills","Department for Business, Innovation and Skills",13/04/2011,Entertaining Overseas (Programme),Knowledge and Innovation Group - Research Base,FOREIGN AND COMMONWEALTH OFFICE (FCO),1021919,10.22
"Department for Business, Innovation and Skills","Department for Business, Innovation and Skills",13/04/2011,Entertaining Overseas (Programme),Knowledge and Innovation Group - Research Base,FOREIGN AND COMMONWEALTH OFFICE (FCO),1021920,31.43
"Department for Business, Innovation and Skills","Department for Business, Innovation and Skills",13/04/2011,Entertaining Overseas (Programme),Knowledge and Innovation Group - Research Base,FOREIGN AND COMMONWEALTH OFFICE (FCO),1021921,2.08
"Department for Business, Innovation and Skills","Department for Business, Innovation and Skills",13/04/2011,Entertaining Overseas (Programme),Knowledge and Innovation Group - Research Base,FOREIGN AND COMMONWEALTH OFFICE (FCO),1021922,4.1
"Department for Business, Innovation and Skills","Department for Business, Innovation and Skills",13/04/2011,Hotels- Overseas  (Programme),Knowledge and Innovation Group - Research Base,FOREIGN AND COMMONWEALTH OFFICE (FCO),1021924,61.21
"Department for Business, Innovation and Skills","Department for Business, Innovation and Skills",13/04/2011,Entertaining Overseas (Programme),Knowledge and Innovation Group - Research Base,FOREIGN AND COMMONWEALTH OFFICE (FCO),1021925,2.26
"Department for Business, Innovation and Skills","Department for Business, Innovation and Skills",13/04/2011,Entertaining Overseas (Programme),Knowledge and Innovation Group - Research Base,FOREIGN AND COMMONWEALTH OFFICE (FCO),1021926,5.52
"Department for Business, Innovation and Skills","Department for Business, Innovation and Skills",13/04/2011,Air Fares  - Overseas (Programme),Knowledge and Innovation Group - Research Base,FOREIGN AND COMMONWEALTH OFFICE (FCO),1021927,31.53
"Department for Business, Innovation and Skills","Department for Business, Innovation and Skills",13/04/2011,Air Fares  - Overseas (Programme),Knowledge and Innovation Group - Research Base,FOREIGN AND COMMONWEALTH OFFICE (FCO),1021929,14.52
"Department for Business, Innovation and Skills","Department for Business, Innovation and Skills",13/04/2011,Air Fares  - Overseas (Programme),Knowledge and Innovation Group - Research Base,FOREIGN AND COMMONWEALTH OFFICE (FCO),1021930,284.9
"Department for Business, Innovation and Skills","Department for Business, Innovation and Skills",13/04/2011,Air Fares  - Overseas (Programme),Knowledge and Innovation Group - Research Base,FOREIGN AND COMMONWEALTH OFFICE (FCO),1021932,89.88
"Department for Business, Innovation and Skills","Department for Business, Innovation and Skills",13/04/2011,Air Fares  - Overseas (Programme),Knowledge and Innovation Group - Research Base,FOREIGN AND COMMONWEALTH OFFICE (FCO),1021933,177.8
"Department for Business, Innovation and Skills","Department for Business, Innovation and Skills",13/04/2011,Air Fares  - Overseas (Programme),Knowledge and Innovation Group - Research Base,FOREIGN AND COMMONWEALTH OFFICE (FCO),1021934,177.81
"Department for Business, Innovation and Skills","Department for Business, Innovation and Skills",13/04/2011,Taxis- Overseas (Programme),Knowledge and Innovation Group - Research Base,FOREIGN AND COMMONWEALTH OFFICE (FCO),1021936,6.94
"Department for Business, Innovation and Skills","Department for Business, Innovation and Skills",13/04/2011,Air Fares  - Overseas (Programme),Knowledge and Innovation Group - Research Base,FOREIGN AND COMMONWEALTH OFFICE (FCO),1021937,479.17
"Department for Business, Innovation and Skills","Department for Business, Innovation and Skills",13/04/2011,Air Fares  - Overseas (Programme),Knowledge and Innovation Group - Research Base,FOREIGN AND COMMONWEALTH OFFICE (FCO),1021938,574.5
"Department for Business, Innovation and Skills","Department for Business, Innovation and Skills",13/04/2011,Air Fares  - Overseas (Programme),Knowledge and Innovation Group - Research Base,FOREIGN AND COMMONWEALTH OFFICE (FCO),1021939,282.69
"Department for Business, Innovation and Skills","Department for Business, Innovation and Skills",13/04/2011,Taxis- Overseas (Programme),Knowledge and Innovation Group - Research Base,FOREIGN AND COMMONWEALTH OFFICE (FCO),1021940,6.31
"Department for Business, Innovation and Skills","Department for Business, Innovation and Skills",13/04/2011,Taxis- Overseas (Programme),Knowledge and Innovation Group - Research Base,FOREIGN AND COMMONWEALTH OFFICE (FCO),1021941,10.1
"Department for Business, Innovation and Skills","Department for Business, Innovation and Skills",13/04/2011,Taxis- Overseas (Programme),Knowledge and Innovation Group - Research Base,FOREIGN AND COMMONWEALTH OFFICE (FCO),1021942,12.62
"Department for Business, Innovation and Skills","Department for Business, Innovation and Skills",13/04/2011,Taxis- Overseas (Programme),Knowledge and Innovation Group - Research Base,FOREIGN AND COMMONWEALTH OFFICE (FCO),1021943,3.16
"Department for Business, Innovation and Skills","Department for Business, Innovation and Skills",13/04/2011,Taxis- Overseas (Programme),Knowledge and Innovation Group - Research Base,FOREIGN AND COMMONWEALTH OFFICE (FCO),1021944,12.62
"Department for Business, Innovation and Skills","Department for Business, Innovation and Skills",13/04/2011,Taxis- Overseas (Programme),Knowledge and Innovation Group - Research Base,FOREIGN AND COMMONWEALTH OFFICE (FCO),1021945,9.47
"Department for Business, Innovation and Skills","Department for Business, Innovation and Skills",13/04/2011,Taxis- Overseas (Programme),Knowledge and Innovation Group - Research Base,FOREIGN AND COMMONWEALTH OFFICE (FCO),1021946,4.42
"Department for Business, Innovation and Skills","Department for Business, Innovation and Skills",13/04/2011,Taxis- Overseas (Programme),Knowledge and Innovation Group - Research Base,FOREIGN AND COMMONWEALTH OFFICE (FCO),1021947,4.42
"Department for Business, Innovation and Skills","Department for Business, Innovation and Skills",13/04/2011,Taxis- Overseas (Programme),Knowledge and Innovation Group - Research Base,FOREIGN AND COMMONWEALTH OFFICE (FCO),1021948,5.68
"Department for Business, Innovation and Skills","Department for Business, Innovation and Skills",13/04/2011,Taxis- Overseas (Programme),Knowledge and Innovation Group - Research Base,FOREIGN AND COMMONWEALTH OFFICE (FCO),1021949,4.42
"Department for Business, Innovation and Skills","Department for Business, Innovation and Skills",13/04/2011,Taxis- Overseas (Programme),Knowledge and Innovation Group - Research Base,FOREIGN AND COMMONWEALTH OFFICE (FCO),1021951,4.42
"Department for Business, Innovation and Skills","Department for Business, Innovation and Skills",13/04/2011,Air Fares  - Overseas (Programme),Knowledge and Innovation Group - Research Base,FOREIGN AND COMMONWEALTH OFFICE (FCO),1021953,165.18
"Department for Business, Innovation and Skills","Department for Business, Innovation and Skills",13/04/2011,Air Fares  - Overseas (Programme),Knowledge and Innovation Group - Research Base,FOREIGN AND COMMONWEALTH OFFICE (FCO),1021954,300
"Department for Business, Innovation and Skills","Department for Business, Innovation and Skills",13/04/2011,Other Overseas Travel & Subsistence (Programme),Knowledge and Innovation Group - Research Base,FOREIGN AND COMMONWEALTH OFFICE (FCO),1021954,104.16
"Department for Business, Innovation and Skills","Department for Business, Innovation and Skills",13/04/2011,Air Fares  - Overseas (Programme),Knowledge and Innovation Group - Research Base,FOREIGN AND COMMONWEALTH OFFICE (FCO),1021958,165.18
"Department for Business, Innovation and Skills","Department for Business, Innovation and Skills",13/04/2011,Air Fares  - Overseas (Programme),Knowledge and Innovation Group - Research Base,FOREIGN AND COMMONWEALTH OFFICE (FCO),1021960,1443.7
"Department for Business, Innovation and Skills","Department for Business, Innovation and Skills",13/04/2011,Air Fares  - Overseas (Programme),Knowledge and Innovation Group - Research Base,FOREIGN AND COMMONWEALTH OFFICE (FCO),1021962,2470.95
"Department for Business, Innovation and Skills","Department for Business, Innovation and Skills",13/04/2011,Air Fares  - Overseas (Programme),Knowledge and Innovation Group - Research Base,FOREIGN AND COMMONWEALTH OFFICE (FCO),1021965,183.29
"Department for Business, Innovation and Skills","Department for Business, Innovation and Skills",13/04/2011,Air Fares  - Overseas (Programme),Knowledge and Innovation Group - Research Base,FOREIGN AND COMMONWEALTH OFFICE (FCO),1021967,1440.84
"Department for Business, Innovation and Skills","Department for Business, Innovation and Skills",13/04/2011,Air Fares  - Overseas (Programme),Knowledge and Innovation Group - Research Base,FOREIGN AND COMMONWEALTH OFFICE (FCO),1021968,270.17
"Department for Business, Innovation and Skills","Department for Business, Innovation and Skills",13/04/2011,Subsistence Payments- Overseas (Programme),Knowledge and Innovation Group - Research Base,FOREIGN AND COMMONWEALTH OFFICE (FCO),1021968,250
"Department for Business, Innovation and Skills","Department for Business, Innovation and Skills",13/04/2011,Other Overseas Travel & Subsistence (Programme),Knowledge and Innovation Group - Research Base,FOREIGN AND COMMONWEALTH OFFICE (FCO),1021968,250
"Department for Business, Innovation and Skills","Department for Business, Innovation and Skills",13/04/2011,Entertaining Overseas (Programme),Knowledge and Innovation Group - Research Base,FOREIGN AND COMMONWEALTH OFFICE (FCO),1021968,155.61
"Department for Business, Innovation and Skills","Department for Business, Innovation and Skills",13/04/2011,Air Fares  - Overseas (Programme),Knowledge and Innovation Group - Research Base,FOREIGN AND COMMONWEALTH OFFICE (FCO),1021970,47.11
"Department for Business, Innovation and Skills","Department for Business, Innovation and Skills",13/04/2011,Taxis- Overseas (Programme),Knowledge and Innovation Group - Research Base,FOREIGN AND COMMONWEALTH OFFICE (FCO),1021970,200
"Department for Business, Innovation and Skills","Department for Business, Innovation and Skills",13/04/2011,Hotels- Overseas  (Programme),Knowledge and Innovation Group - Research Base,FOREIGN AND COMMONWEALTH OFFICE (FCO),1021970,363.63
"Department for Business, Innovation and Skills","Department for Business, Innovation and Skills",13/04/2011,Hotels- Overseas  (Programme),Knowledge and Innovation Group - Research Base,FOREIGN AND COMMONWEALTH OFFICE (FCO),1021970,977.68
"Department for Business, Innovation and Skills","Department for Business, Innovation and Skills",13/04/2011,Subsistence Payments- Overseas (Programme),Knowledge and Innovation Group - Research Base,FOREIGN AND COMMONWEALTH OFFICE (FCO),1021970,400
"Department for Business, Innovation and Skills","Department for Business, Innovation and Skills",13/04/2011,Air Fares  - Overseas (Programme),Knowledge and Innovation Group - Research Base,FOREIGN AND COMMONWEALTH OFFICE (FCO),1021974,165.18
"Department for Business, Innovation and Skills","Department for Business, Innovation and Skills",13/04/2011,Air Fares  - Overseas (Programme),Knowledge and Innovation Group - Research Base,FOREIGN AND COMMONWEALTH OFFICE (FCO),1021977,9.47
"Department for Business, Innovation and Skills","Department for Business, Innovation and Skills",13/04/2011,Air Fares  - Overseas (Programme),Knowledge and Innovation Group - Research Base,FOREIGN AND COMMONWEALTH OFFICE (FCO),1021979,10.1
"Department for Business, Innovation and Skills","Department for Business, Innovation and Skills",13/04/2011,Air Fares  - Overseas (Programme),Knowledge and Innovation Group - Research Base,FOREIGN AND COMMONWEALTH OFFICE (FCO),1021980,8.05
"Department for Business, Innovation and Skills","Department for Business, Innovation and Skills",13/04/2011,Air Fares  - Overseas (Programme),Knowledge and Innovation Group - Research Base,FOREIGN AND COMMONWEALTH OFFICE (FCO),1021981,21.68
"Department for Business, Innovation and Skills","Department for Business, Innovation and Skills",13/04/2011,Air Fares  - Overseas (Programme),Knowledge and Innovation Group - Research Base,FOREIGN AND COMMONWEALTH OFFICE (FCO),1021982,146.04
"Department for Business, Innovation and Skills","Department for Business, Innovation and Skills",13/04/2011,Taxis- Overseas (Programme),Knowledge and Innovation Group - Research Base,FOREIGN AND COMMONWEALTH OFFICE (FCO),1021984,5.05
"Department for Business, Innovation and Skills","Department for Business, Innovation and Skills",13/04/2011,Taxis- Overseas (Programme),Knowledge and Innovation Group - Research Base,FOREIGN AND COMMONWEALTH OFFICE (FCO),1021985,25.25
"Department for Business, Innovation and Skills","Department for Business, Innovation and Skills",13/04/2011,Entertaining Overseas (Programme),Knowledge and Innovation Group - Research Base,FOREIGN AND COMMONWEALTH OFFICE (FCO),1021987,7.81
"Department for Business, Innovation and Skills","Department for Business, Innovation and Skills",13/04/2011,Air Fares  - Overseas (Programme),Knowledge and Innovation Group - Research Base,FOREIGN AND COMMONWEALTH OFFICE (FCO),1021988,177.8
"Department for Business, Innovation and Skills","Department for Business, Innovation and Skills",13/04/2011,Air Fares  - Overseas (Programme),Knowledge and Innovation Group - Research Base,FOREIGN AND COMMONWEALTH OFFICE (FCO),1021989,264.52
"Department for Business, Innovation and Skills","Department for Business, Innovation and Skills",13/04/2011,Air Fares  - Overseas (Programme),Knowledge and Innovation Group - Research Base,FOREIGN AND COMMONWEALTH OFFICE (FCO),1021990,249.37
"Department for Business, Innovation and Skills","Department for Business, Innovation and Skills",13/04/2011,Taxis- Overseas (Programme),Knowledge and Innovation Group - Research Base,FOREIGN AND COMMONWEALTH OFFICE (FCO),1021991,44.18
"Department for Business, Innovation and Skills","Department for Business, Innovation and Skills",18/04/2011,Air Fares  - Overseas (Programme),Knowledge and Innovation Group - Research Base,FOREIGN AND COMMONWEALTH OFFICE (FCO),1022398,1000
"Department for Business, Innovation and Skills","Department for Business, Innovation and Skills",18/04/2011,Air Fares  - Overseas (Programme),Knowledge and Innovation Group - Research Base,FOREIGN AND COMMONWEALTH OFFICE (FCO),1022400,177.42
"Department for Business, Innovation and Skills","Department for Business, Innovation and Skills",18/04/2011,Hotels- Overseas  (Programme),Knowledge and Innovation Group - Research Base,FOREIGN AND COMMONWEALTH OFFICE (FCO),1022400,950.2
"Department for Business, Innovation and Skills","Department for Business, Innovation and Skills",18/04/2011,Subsistence Payments- Overseas (Programme),Knowledge and Innovation Group - Research Base,FOREIGN AND COMMONWEALTH OFFICE (FCO),1022400,60.12
"Department for Business, Innovation and Skills","Department for Business, Innovation and Skills",18/04/2011,Other Overseas Travel & Subsistence (Programme),Knowledge and Innovation Group - Research Base,FOREIGN AND COMMONWEALTH OFFICE (FCO),1022400,1224.17
"Department for Business, Innovation and Skills","Department for Business, Innovation and Skills",18/04/2011,Rail Fares (Programme),Knowledge and Innovation Group - Research Base,FOREIGN AND COMMONWEALTH OFFICE (FCO),1022402,389.04
"Department for Business, Innovation and Skills","Department for Business, Innovation and Skills",18/04/2011,Hotels (Programme),Knowledge and Innovation Group - Research Base,FOREIGN AND COMMONWEALTH OFFICE (FCO),1022402,655.95
"Department for Business, Innovation and Skills","Department for Business, Innovation and Skills",18/04/2011,Air Fares  - Overseas (Programme),Knowledge and Innovation Group - Research Base,FOREIGN AND COMMONWEALTH OFFICE (FCO),1022402,1725.98
"Department for Business, Innovation and Skills","Department for Business, Innovation and Skills",18/04/2011,Subsistence Payments- Overseas (Programme),Knowledge and Innovation Group - Research Base,FOREIGN AND COMMONWEALTH OFFICE (FCO),1022402,329.03
"Department for Business, Innovation and Skills","Department for Business, Innovation and Skills",18/04/2011,Entertaining Overseas (Programme),Knowledge and Innovation Group - Research Base,FOREIGN AND COMMONWEALTH OFFICE (FCO),1022402,500
"Department for Business, Innovation and Skills","Department for Business, Innovation and Skills",18/04/2011,Subsistence Payments (Programme),Knowledge and Innovation Group - Research Base,FOREIGN AND COMMONWEALTH OFFICE (FCO),1022404,210.4
"Department for Business, Innovation and Skills","Department for Business, Innovation and Skills",18/04/2011,Subsistence Payments (Programme),Knowledge and Innovation Group - Research Base,FOREIGN AND COMMONWEALTH OFFICE (FCO),1022405,300
"Department for Business, Innovation and Skills","Department for Business, Innovation and Skills",18/04/2011,Hotels- Overseas  (Programme),Knowledge and Innovation Group - Research Base,FOREIGN AND COMMONWEALTH OFFICE (FCO),1022405,1500
"Department for Business, Innovation and Skills","Department for Business, Innovation and Skills",18/04/2011,Air Fares  - Overseas (Programme),Knowledge and Innovation Group - Research Base,FOREIGN AND COMMONWEALTH OFFICE (FCO),1022407,445.06
"Department for Business, Innovation and Skills","Department for Business, Innovation and Skills",18/04/2011,Air Fares  - Overseas (Programme),Knowledge and Innovation Group - Research Base,FOREIGN AND COMMONWEALTH OFFICE (FCO),1022408,160.81
"Department for Business, Innovation and Skills","Department for Business, Innovation and Skills",18/04/2011,Air Fares  - Overseas (Programme),Knowledge and Innovation Group - Research Base,FOREIGN AND COMMONWEALTH OFFICE (FCO),1022410,34.2
"Department for Business, Innovation and Skills","Department for Business, Innovation and Skills",18/04/2011,Air Fares  - Overseas (Programme),Knowledge and Innovation Group - Research Base,FOREIGN AND COMMONWEALTH OFFICE (FCO),1022412,349.36
"Department for Business, Innovation and Skills","Department for Business, Innovation and Skills",18/04/2011,Air Fares  - Overseas (Programme),Knowledge and Innovation Group - Research Base,FOREIGN AND COMMONWEALTH OFFICE (FCO),1022413,1196.07
"Department for Business, Innovation and Skills","Department for Business, Innovation and Skills",18/04/2011,Entertaining Overseas (Programme),Knowledge and Innovation Group - Research Base,FOREIGN AND COMMONWEALTH OFFICE (FCO),1022416,673.53
"Department for Business, Innovation and Skills","Department for Business, Innovation and Skills",20/04/2011,Air Fares  - Overseas (Programme),Knowledge and Innovation Group - Research Base,FOREIGN AND COMMONWEALTH OFFICE (FCO),1022753,4737.2
"Department for Business, Innovation and Skills","Department for Business, Innovation and Skills",20/04/2011,Air Fares  - Overseas (Programme),Knowledge and Innovation Group - Research Base,FOREIGN AND COMMONWEALTH OFFICE (FCO),1022754,1000
"Department for Business, Innovation and Skills","Department for Business, Innovation and Skills",20/04/2011,Hotels- Overseas  (Programme),Knowledge and Innovation Group - Research Base,FOREIGN AND COMMONWEALTH OFFICE (FCO),1022755,664.17
"Department for Business, Innovation and Skills","Department for Business, Innovation and Skills",20/04/2011,Hire of Conference Facilities (Programme),Knowledge and Innovation Group - Research Base,FOREIGN AND COMMONWEALTH OFFICE (FCO),1022755,6000
"Department for Business, Innovation and Skills","Department for Business, Innovation and Skills",20/04/2011,Interpreters,Knowledge and Innovation Group - Research Base,FOREIGN AND COMMONWEALTH OFFICE (FCO),1022755,1500
"Department for Business, Innovation and Skills","Department for Business, Innovation and Skills",20/04/2011,Air Fares  - Overseas (Programme),Knowledge and Innovation Group - Research Base,FOREIGN AND COMMONWEALTH OFFICE (FCO),1022758,2298.58
"Department for Business, Innovation and Skills","Department for Business, Innovation and Skills",20/04/2011,Air Fares  - Overseas (Programme),Knowledge and Innovation Group - Research Base,FOREIGN AND COMMONWEALTH OFFICE (FCO),1022760,1981.96
"Department for Business, Innovation and Skills","Department for Business, Innovation and Skills",20/04/2011,Entertaining Overseas (Programme),Knowledge and Innovation Group - Research Base,FOREIGN AND COMMONWEALTH OFFICE (FCO),1022760,2800
"Department for Business, Innovation and Skills","Department for Business, Innovation and Skills",20/04/2011,Taxis- Overseas (Programme),Knowledge and Innovation Group - Research Base,FOREIGN AND COMMONWEALTH OFFICE (FCO),1022762,55.67
"Department for Business, Innovation and Skills","Department for Business, Innovation and Skills",20/04/2011,Hotels- Overseas  (Programme),Knowledge and Innovation Group - Research Base,FOREIGN AND COMMONWEALTH OFFICE (FCO),1022763,150.17
"Department for Business, Innovation and Skills","Department for Business, Innovation and Skills",20/04/2011,Air Fares  - Overseas (Programme),Knowledge and Innovation Group - Research Base,FOREIGN AND COMMONWEALTH OFFICE (FCO),1022764,1005
"Department for Business, Innovation and Skills","Department for Business, Innovation and Skills",20/04/2011,Subsistence Payments- Overseas (Programme),Knowledge and Innovation Group - Research Base,FOREIGN AND COMMONWEALTH OFFICE (FCO),1022764,487.81
"Department for Business, Innovation and Skills","Department for Business, Innovation and Skills",20/04/2011,Hotels- Overseas  (Programme),Knowledge and Innovation Group - Research Base,FOREIGN AND COMMONWEALTH OFFICE (FCO),1022766,295.06
"Department for Business, Innovation and Skills","Department for Business, Innovation and Skills",20/04/2011,Air Fares  - Overseas (Programme),Knowledge and Innovation Group - Research Base,FOREIGN AND COMMONWEALTH OFFICE (FCO),1022767,118.11
"Department for Business, Innovation and Skills","Department for Business, Innovation and Skills",20/04/2011,Air Fares  - Overseas (Programme),Knowledge and Innovation Group - Research Base,FOREIGN AND COMMONWEALTH OFFICE (FCO),1022769,118.11
"Department for Business, Innovation and Skills","Department for Business, Innovation and Skills",20/04/2011,Air Fares  - Overseas (Programme),Knowledge and Innovation Group - Research Base,FOREIGN AND COMMONWEALTH OFFICE (FCO),1022770,118.75
"Department for Business, Innovation and Skills","Department for Business, Innovation and Skills",20/04/2011,Air Fares  - Overseas (Programme),Knowledge and Innovation Group - Research Base,FOREIGN AND COMMONWEALTH OFFICE (FCO),1022772,118.05
"Department for Business, Innovation and Skills","Department for Business, Innovation and Skills",20/04/2011,Air Fares  - Overseas (Programme),Knowledge and Innovation Group - Research Base,FOREIGN AND COMMONWEALTH OFFICE (FCO),1022773,118.04
"Department for Business, Innovation and Skills","Department for Business, Innovation and Skills",20/04/2011,Other Overseas Travel & Subsistence (Programme),Knowledge and Innovation Group - Research Base,FOREIGN AND COMMONWEALTH OFFICE (FCO),1022775,118.09
"Department for Business, Innovation and Skills","Department for Business, Innovation and Skills",20/04/2011,Hotels- Overseas  (Programme),Knowledge and Innovation Group - Research Base,FOREIGN AND COMMONWEALTH OFFICE (FCO),1022776,1170
"Department for Business, Innovation and Skills","Department for Business, Innovation and Skills",20/04/2011,Entertaining Overseas (Programme),Knowledge and Innovation Group - Research Base,FOREIGN AND COMMONWEALTH OFFICE (FCO),1022776,800
"Department for Business, Innovation and Skills","Department for Business, Innovation and Skills",20/04/2011,Printing (Programme),Knowledge and Innovation Group - Research Base,FOREIGN AND COMMONWEALTH OFFICE (FCO),1022776,515.12
"Department for Business, Innovation and Skills","Department for Business, Innovation and Skills",20/04/2011,Other Overseas Travel & Subsistence (Programme),Knowledge and Innovation Group - Research Base,FOREIGN AND COMMONWEALTH OFFICE (FCO),1022786,118.4
"Department for Business, Innovation and Skills","Department for Business, Innovation and Skills",20/04/2011,Other Overseas Travel & Subsistence (Programme),Knowledge and Innovation Group - Research Base,FOREIGN AND COMMONWEALTH OFFICE (FCO),1022789,118.42
"Department for Business, Innovation and Skills","Department for Business, Innovation and Skills",20/04/2011,Hotels- Overseas  (Programme),Knowledge and Innovation Group - Research Base,FOREIGN AND COMMONWEALTH OFFICE (FCO),1022790,3773.09
"Department for Business, Innovation and Skills","Department for Business, Innovation and Skills",20/04/2011,Subsistence Payments- Overseas (Programme),Knowledge and Innovation Group - Research Base,FOREIGN AND COMMONWEALTH OFFICE (FCO),1022790,1170
"Department for Business, Innovation and Skills","Department for Business, Innovation and Skills",20/04/2011,Other Overseas Travel & Subsistence (Programme),Knowledge and Innovation Group - Research Base,FOREIGN AND COMMONWEALTH OFFICE (FCO),1022790,510.3
"Department for Business, Innovation and Skills","Department for Business, Innovation and Skills",20/04/2011,Air Fares  - Overseas (Programme),Knowledge and Innovation Group - Research Base,FOREIGN AND COMMONWEALTH OFFICE (FCO),1022791,270.5
"Department for Business, Innovation and Skills","Department for Business, Innovation and Skills",20/04/2011,Air Fares  - Overseas (Programme),Knowledge and Innovation Group - Research Base,FOREIGN AND COMMONWEALTH OFFICE (FCO),1022794,724.38
"Department for Business, Innovation and Skills","Department for Business, Innovation and Skills",20/04/2011,Rail Fares - Overseas (Programme),Knowledge and Innovation Group - Research Base,FOREIGN AND COMMONWEALTH OFFICE (FCO),1022798,325.2
"Department for Business, Innovation and Skills","Department for Business, Innovation and Skills",20/04/2011,Interpreters,Knowledge and Innovation Group - Research Base,FOREIGN AND COMMONWEALTH OFFICE (FCO),1022802,369.2
"Department for Business, Innovation and Skills","Department for Business, Innovation and Skills",20/04/2011,Other Overseas Travel & Subsistence (Programme),Knowledge and Innovation Group - Research Base,FOREIGN AND COMMONWEALTH OFFICE (FCO),1022803,174.72
"Department for Business, Innovation and Skills","Department for Business, Innovation and Skills",20/04/2011,Entertaining Overseas (Programme),Knowledge and Innovation Group - Research Base,FOREIGN AND COMMONWEALTH OFFICE (FCO),1022803,1500
"Department for Business, Innovation and Skills","Department for Business, Innovation and Skills",20/04/2011,Air Fares  - Overseas (Programme),Knowledge and Innovation Group - Research Base,FOREIGN AND COMMONWEALTH OFFICE (FCO),1022804,45.29
"Department for Business, Innovation and Skills","Department for Business, Innovation and Skills",20/04/2011,Air Fares  - Overseas (Programme),Knowledge and Innovation Group - Research Base,FOREIGN AND COMMONWEALTH OFFICE (FCO),1022806,221.52
"Department for Business, Innovation and Skills","Department for Business, Innovation and Skills",20/04/2011,Air Fares  - Overseas (Programme),Knowledge and Innovation Group - Research Base,FOREIGN AND COMMONWEALTH OFFICE (FCO),1022810,913.49
"Department for Business, Innovation and Skills","Department for Business, Innovation and Skills",20/04/2011,Air Fares  - Overseas (Programme),Knowledge and Innovation Group - Research Base,FOREIGN AND COMMONWEALTH OFFICE (FCO),1022811,549.92
"Department for Business, Innovation and Skills","Department for Business, Innovation and Skills",20/04/2011,Grants - Current - Other,Knowledge and Innovation Group - Research Base,FOREIGN AND COMMONWEALTH OFFICE (FCO),1022813,1004.17
"Department for Business, Innovation and Skills","Department for Business, Innovation and Skills",20/04/2011,Taxis- Overseas (Programme),Knowledge and Innovation Group - Research Base,FOREIGN AND COMMONWEALTH OFFICE (FCO),1022813,190.04
"Department for Business, Innovation and Skills","Department for Business, Innovation and Skills",20/04/2011,Subsistence Payments- Overseas (Programme),Knowledge and Innovation Group - Research Base,FOREIGN AND COMMONWEALTH OFFICE (FCO),1022813,213.27
"Department for Business, Innovation and Skills","Department for Business, Innovation and Skills",20/04/2011,Entertaining Overseas (Programme),Knowledge and Innovation Group - Research Base,FOREIGN AND COMMONWEALTH OFFICE (FCO),1022813,1650
"Department for Business, Innovation and Skills","Department for Business, Innovation and Skills",20/04/2011,Hotels- Overseas  (Programme),Knowledge and Innovation Group - Research Base,FOREIGN AND COMMONWEALTH OFFICE (FCO),1022814,567.47
"Department for Business, Innovation and Skills","Department for Business, Innovation and Skills",20/04/2011,Others UK Travel & Subsistence (Programme),Knowledge and Innovation Group - Research Base,FOREIGN AND COMMONWEALTH OFFICE (FCO),1022815,1400
"Department for Business, Innovation and Skills","Department for Business, Innovation and Skills",20/04/2011,Entertaining UK (Programme),Knowledge and Innovation Group - Research Base,FOREIGN AND COMMONWEALTH OFFICE (FCO),1022815,400
"Department for Business, Innovation and Skills","Department for Business, Innovation and Skills",20/04/2011,Air Fares  - Overseas (Programme),Knowledge and Innovation Group - Research Base,FOREIGN AND COMMONWEALTH OFFICE (FCO),1022816,923.1
"Department for Business, Innovation and Skills","Department for Business, Innovation and Skills",20/04/2011,Air Fares  - Overseas (Programme),Knowledge and Innovation Group - Research Base,FOREIGN AND COMMONWEALTH OFFICE (FCO),1022817,740.69
"Department for Business, Innovation and Skills","Department for Business, Innovation and Skills",20/04/2011,Air Fares  - Overseas (Programme),Knowledge and Innovation Group - Research Base,FOREIGN AND COMMONWEALTH OFFICE (FCO),1022818,1200
"Department for Business, Innovation and Skills","Department for Business, Innovation and Skills",20/04/2011,Air Fares  - Overseas (Programme),Knowledge and Innovation Group - Research Base,FOREIGN AND COMMONWEALTH OFFICE (FCO),1022819,1442.35
"Department for Business, Innovation and Skills","Department for Business, Innovation and Skills",20/04/2011,Air Fares  - Overseas (Programme),Knowledge and Innovation Group - Research Base,FOREIGN AND COMMONWEALTH OFFICE (FCO),1022820,1476.87
"Department for Business, Innovation and Skills","Department for Business, Innovation and Skills",20/04/2011,Subsistence Payments- Overseas (Programme),Knowledge and Innovation Group - Research Base,FOREIGN AND COMMONWEALTH OFFICE (FCO),1022821,40
"Department for Business, Innovation and Skills","Department for Business, Innovation and Skills",20/04/2011,Hotels- Overseas  (Programme),Knowledge and Innovation Group - Research Base,FOREIGN AND COMMONWEALTH OFFICE (FCO),1022823,464.12
"Department for Business, Innovation and Skills","Department for Business, Innovation and Skills",20/04/2011,Subsistence Payments- Overseas (Programme),Knowledge and Innovation Group - Research Base,FOREIGN AND COMMONWEALTH OFFICE (FCO),1022823,350
"Department for Business, Innovation and Skills","Department for Business, Innovation and Skills",20/04/2011,Other Overseas Travel & Subsistence (Programme),Knowledge and Innovation Group - Research Base,FOREIGN AND COMMONWEALTH OFFICE (FCO),1022823,19.26
"Department for Business, Innovation and Skills","Department for Business, Innovation and Skills",20/04/2011,Other Overseas Travel & Subsistence (Programme),Knowledge and Innovation Group - Research Base,FOREIGN AND COMMONWEALTH OFFICE (FCO),1022824,941.63
"Department for Business, Innovation and Skills","Department for Business, Innovation and Skills",20/04/2011,Air Fares  - Overseas (Programme),Knowledge and Innovation Group - Research Base,FOREIGN AND COMMONWEALTH OFFICE (FCO),1022826,444
"Department for Business, Innovation and Skills","Department for Business, Innovation and Skills",20/04/2011,Air Fares  - Overseas (Programme),Knowledge and Innovation Group - Research Base,FOREIGN AND COMMONWEALTH OFFICE (FCO),1022827,1552.15
"Department for Business, Innovation and Skills","Department for Business, Innovation and Skills",01/04/2011,Grants - Current - Other,Knowledge and Innovation Group - Research Base,THE BRITISH COUNCIL,1023782,12579
"Department for Business, Innovation and Skills","Department for Business, Innovation and Skills",04/04/2011,Air Fares  - Overseas (Programme),Knowledge and Innovation Group - Research Base,UNIVERSITY OF OXFORD,1023849,11762.31
"Department for Business, Innovation and Skills","Department for Business, Innovation and Skills",28/04/2011,Hotels (Programme),Knowledge and Innovation Group - Research Base,FOREIGN AND COMMONWEALTH OFFICE (FCO),1024039,13.39
"Department for Business, Innovation and Skills","Department for Business, Innovation and Skills",28/04/2011,Hotels- Overseas  (Programme),Knowledge and Innovation Group - Research Base,FOREIGN AND COMMONWEALTH OFFICE (FCO),1024039,118.09
"Department for Business, Innovation and Skills","Department for Business, Innovation and Skills",28/04/2011,Other Overseas Travel & Subsistence (Programme),Knowledge and Innovation Group - Research Base,FOREIGN AND COMMONWEALTH OFFICE (FCO),1024040,109.09
"Department for Business, Innovation and Skills","Department for Business, Innovation and Skills",28/04/2011,Subsistence Payments (Programme),Knowledge and Innovation Group - Research Base,FOREIGN AND COMMONWEALTH OFFICE (FCO),1024041,123.73
"Department for Business, Innovation and Skills","Department for Business, Innovation and Skills",28/04/2011,Air Fares  - Overseas (Programme),Knowledge and Innovation Group - Research Base,FOREIGN AND COMMONWEALTH OFFICE (FCO),1024042,1012.22
"Department for Business, Innovation and Skills","Department for Business, Innovation and Skills",28/04/2011,Air Fares  - Overseas (Programme),Knowledge and Innovation Group - Research Base,FOREIGN AND COMMONWEALTH OFFICE (FCO),1024053,3558.3
"Department for Business, Innovation and Skills","Department for Business, Innovation and Skills",28/04/2011,Subsistence Payments (Programme),Knowledge and Innovation Group - Research Base,FOREIGN AND COMMONWEALTH OFFICE (FCO),1024055,369.77
"Department for Business, Innovation and Skills","Department for Business, Innovation and Skills",28/04/2011,Hotels (Programme),Knowledge and Innovation Group - Research Base,FOREIGN AND COMMONWEALTH OFFICE (FCO),1024057,669.97
"Department for Business, Innovation and Skills","Department for Business, Innovation and Skills",28/04/2011,Hotels- Overseas  (Programme),Knowledge and Innovation Group - Research Base,FOREIGN AND COMMONWEALTH OFFICE (FCO),1024060,278.62
"Department for Business, Innovation and Skills","Department for Business, Innovation and Skills",28/04/2011,Air Fares  - Overseas (Programme),Knowledge and Innovation Group - Research Base,FOREIGN AND COMMONWEALTH OFFICE (FCO),1024061,1204.93
"Department for Business, Innovation and Skills","Department for Business, Innovation and Skills",28/04/2011,Air Fares  - Overseas (Programme),Knowledge and Innovation Group - Research Base,FOREIGN AND COMMONWEALTH OFFICE (FCO),1024065,62.18
"Department for Business, Innovation and Skills","Department for Business, Innovation and Skills",28/04/2011,Air Fares  - Overseas (Programme),Knowledge and Innovation Group - Research Base,FOREIGN AND COMMONWEALTH OFFICE (FCO),1024068,195.03
"Department for Business, Innovation and Skills","Department for Business, Innovation and Skills",28/04/2011,Air Fares  - Overseas (Programme),Knowledge and Innovation Group - Research Base,FOREIGN AND COMMONWEALTH OFFICE (FCO),1024073,239.67
"Department for Business, Innovation and Skills","Department for Business, Innovation and Skills",28/04/2011,Air Fares  - Overseas (Programme),Knowledge and Innovation Group - Research Base,FOREIGN AND COMMONWEALTH OFFICE (FCO),1024074,925.95
"Department for Business, Innovation and Skills","Department for Business, Innovation and Skills",28/04/2011,Air Fares  - Overseas (Programme),Knowledge and Innovation Group - Research Base,FOREIGN AND COMMONWEALTH OFFICE (FCO),1024076,1109.87
"Department for Business, Innovation and Skills","Department for Business, Innovation and Skills",28/04/2011,Subsistence Payments (Programme),Knowledge and Innovation Group - Research Base,FOREIGN AND COMMONWEALTH OFFICE (FCO),1024078,189.6
"Department for Business, Innovation and Skills","Department for Business, Innovation and Skills",28/04/2011,Hotels- Overseas  (Programme),Knowledge and Innovation Group - Research Base,FOREIGN AND COMMONWEALTH OFFICE (FCO),1024078,3039.43
"Department for Business, Innovation and Skills","Department for Business, Innovation and Skills",28/04/2011,Subsistence Payments- Overseas (Programme),Knowledge and Innovation Group - Research Base,FOREIGN AND COMMONWEALTH OFFICE (FCO),1024078,370.97
"Department for Business, Innovation and Skills","Department for Business, Innovation and Skills",28/04/2011,Air Fares  - Overseas (Programme),Knowledge and Innovation Group - Research Base,FOREIGN AND COMMONWEALTH OFFICE (FCO),1024079,63.88
"Department for Business, Innovation and Skills","Department for Business, Innovation and Skills",28/04/2011,Other Overseas Travel & Subsistence (Programme),Knowledge and Innovation Group - Research Base,FOREIGN AND COMMONWEALTH OFFICE (FCO),1024079,11.35
"Department for Business, Innovation and Skills","Department for Business, Innovation and Skills",28/04/2011,Printing (Programme),Knowledge and Innovation Group - Research Base,FOREIGN AND COMMONWEALTH OFFICE (FCO),1024079,44.02
"Department for Business, Innovation and Skills","Department for Business, Innovation and Skills",28/04/2011,Other Overseas Travel & Subsistence (Programme),Knowledge and Innovation Group - Research Base,FOREIGN AND COMMONWEALTH OFFICE (FCO),1024080,119.37
"Department for Business, Innovation and Skills","Department for Business, Innovation and Skills",28/04/2011,Air Fares  - Overseas (Programme),Knowledge and Innovation Group - Research Base,FOREIGN AND COMMONWEALTH OFFICE (FCO),1024082,137.22
"Department for Business, Innovation and Skills","Department for Business, Innovation and Skills",28/04/2011,Air Fares  - Overseas (Programme),Knowledge and Innovation Group - Research Base,FOREIGN AND COMMONWEALTH OFFICE (FCO),1024083,116.24
"Department for Business, Innovation and Skills","Department for Business, Innovation and Skills",28/04/2011,Hotels (Programme),Knowledge and Innovation Group - Research Base,FOREIGN AND COMMONWEALTH OFFICE (FCO),1024085,256.61
"Department for Business, Innovation and Skills","Department for Business, Innovation and Skills",28/04/2011,Entertaining Overseas (Programme),Knowledge and Innovation Group - Research Base,FOREIGN AND COMMONWEALTH OFFICE (FCO),1024087,800
"Department for Business, Innovation and Skills","Department for Business, Innovation and Skills",28/04/2011,Hire of Conference Facilities (Programme),Knowledge and Innovation Group - Research Base,FOREIGN AND COMMONWEALTH OFFICE (FCO),1024087,200.76
"Department for Business, Innovation and Skills","Department for Business, Innovation and Skills",28/04/2011,Hire of Conference Facilities (Programme),Knowledge and Innovation Group - Research Base,FOREIGN AND COMMONWEALTH OFFICE (FCO),1024087,6
"Department for Business, Innovation and Skills","Department for Business, Innovation and Skills",28/04/2011,Rail Fares - Overseas (Programme),Knowledge and Innovation Group - Research Base,FOREIGN AND COMMONWEALTH OFFICE (FCO),1024088,8.7
"Department for Business, Innovation and Skills","Department for Business, Innovation and Skills",28/04/2011,Hotels- Overseas  (Programme),Knowledge and Innovation Group - Research Base,FOREIGN AND COMMONWEALTH OFFICE (FCO),1024088,1300
"Department for Business, Innovation and Skills","Department for Business, Innovation and Skills",28/04/2011,Hotels (Programme),Knowledge and Innovation Group - Research Base,FOREIGN AND COMMONWEALTH OFFICE (FCO),1024090,111.2
"Department for Business, Innovation and Skills","Department for Business, Innovation and Skills",28/04/2011,Hotels (Programme),Knowledge and Innovation Group - Research Base,FOREIGN AND COMMONWEALTH OFFICE (FCO),1024092,11.63
"Department for Business, Innovation and Skills","Department for Business, Innovation and Skills",28/04/2011,Hotels- Overseas  (Programme),Knowledge and Innovation Group - Research Base,FOREIGN AND COMMONWEALTH OFFICE (FCO),1024094,243.6
"Department for Business, Innovation and Skills","Department for Business, Innovation and Skills",28/04/2011,Rail Fares - Overseas (Programme),Knowledge and Innovation Group - Research Base,FOREIGN AND COMMONWEALTH OFFICE (FCO),1024097,132.72
"Department for Business, Innovation and Skills","Department for Business, Innovation and Skills",28/04/2011,Entertaining Overseas (Programme),Knowledge and Innovation Group - Research Base,FOREIGN AND COMMONWEALTH OFFICE (FCO),1024099,339.87
"Department for Business, Innovation and Skills","Department for Business, Innovation and Skills",28/04/2011,Air Fares  - Overseas (Programme),Knowledge and Innovation Group - Research Base,FOREIGN AND COMMONWEALTH OFFICE (FCO),1024101,434.36
"Department for Business, Innovation and Skills","Department for Business, Innovation and Skills",28/04/2011,Hotels (Programme),Knowledge and Innovation Group - Research Base,FOREIGN AND COMMONWEALTH OFFICE (FCO),1024102,1055.81
"Department for Business, Innovation and Skills","Department for Business, Innovation and Skills",28/04/2011,Other Overseas Travel & Subsistence (Programme),Knowledge and Innovation Group - Research Base,FOREIGN AND COMMONWEALTH OFFICE (FCO),1024103,3517.86
"Department for Business, Innovation and Skills","Department for Business, Innovation and Skills",28/04/2011,Hotels (Programme),Knowledge and Innovation Group - Research Base,FOREIGN AND COMMONWEALTH OFFICE (FCO),1024104,2391.17
"Department for Business, Innovation and Skills","Department for Business, Innovation and Skills",28/04/2011,Hotels (Programme),Knowledge and Innovation Group - Research Base,FOREIGN AND COMMONWEALTH OFFICE (FCO),1024106,1753.02
"Department for Business, Innovation and Skills","Department for Business, Innovation and Skills",28/04/2011,Air Fares  - Overseas (Programme),Knowledge and Innovation Group - Research Base,FOREIGN AND COMMONWEALTH OFFICE (FCO),1024106,591.24
"Department for Business, Innovation and Skills","Department for Business, Innovation and Skills",28/04/2011,Air Fares  - Overseas (Programme),Knowledge and Innovation Group - Research Base,FOREIGN AND COMMONWEALTH OFFICE (FCO),1024107,10146.58
"Department for Business, Innovation and Skills","Department for Business, Innovation and Skills",28/04/2011,Rail Fares - Overseas (Programme),Knowledge and Innovation Group - Research Base,FOREIGN AND COMMONWEALTH OFFICE (FCO),1024108,500
"Department for Business, Innovation and Skills","Department for Business, Innovation and Skills",28/04/2011,Air Fares  - Overseas (Programme),Knowledge and Innovation Group - Research Base,FOREIGN AND COMMONWEALTH OFFICE (FCO),1024108,4353.42
"Department for Business, Innovation and Skills","Department for Business, Innovation and Skills",28/04/2011,Hotels- Overseas  (Programme),Knowledge and Innovation Group - Research Base,FOREIGN AND COMMONWEALTH OFFICE (FCO),1024108,2400
"Department for Business, Innovation and Skills","Department for Business, Innovation and Skills",28/04/2011,Entertaining Overseas (Programme),Knowledge and Innovation Group - Research Base,FOREIGN AND COMMONWEALTH OFFICE (FCO),1024108,2600
"Department for Business, Innovation and Skills","Department for Business, Innovation and Skills",28/04/2011,Entertaining Overseas (Programme),Knowledge and Innovation Group - Research Base,FOREIGN AND COMMONWEALTH OFFICE (FCO),1024108,276.55
"Department for Business, Innovation and Skills","Department for Business, Innovation and Skills",28/04/2011,Printing (Programme),Knowledge and Innovation Group - Research Base,FOREIGN AND COMMONWEALTH OFFICE (FCO),1024110,97.23
"Department for Business, Innovation and Skills","Department for Business, Innovation and Skills",28/04/2011,Air Fares  - Overseas (Programme),Knowledge and Innovation Group - Research Base,FOREIGN AND COMMONWEALTH OFFICE (FCO),1024112,3023.4
"Department for Business, Innovation and Skills","Department for Business, Innovation and Skills",28/04/2011,Air Fares  - Overseas (Programme),Knowledge and Innovation Group - Research Base,FOREIGN AND COMMONWEALTH OFFICE (FCO),1024114,2645.28
"Department for Business, Innovation and Skills","Department for Business, Innovation and Skills",28/04/2011,Air Fares  - Overseas (Programme),Knowledge and Innovation Group - Research Base,FOREIGN AND COMMONWEALTH OFFICE (FCO),1024114,41.97
"Department for Business, Innovation and Skills","Department for Business, Innovation and Skills",28/04/2011,Subsistence Payments- Overseas (Programme),Knowledge and Innovation Group - Research Base,FOREIGN AND COMMONWEALTH OFFICE (FCO),1024116,266.79
"Department for Business, Innovation and Skills","Department for Business, Innovation and Skills",28/04/2011,Hotels- Overseas  (Programme),Knowledge and Innovation Group - Research Base,FOREIGN AND COMMONWEALTH OFFICE (FCO),1024118,151.9
"Department for Business, Innovation and Skills","Department for Business, Innovation and Skills",28/04/2011,Air Fares  - Overseas (Programme),Knowledge and Innovation Group - Research Base,FOREIGN AND COMMONWEALTH OFFICE (FCO),1024119,535.46
"Department for Business, Innovation and Skills","Department for Business, Innovation and Skills",28/04/2011,Hotels- Overseas  (Programme),Knowledge and Innovation Group - Research Base,FOREIGN AND COMMONWEALTH OFFICE (FCO),1024121,156.25
"Department for Business, Innovation and Skills","Department for Business, Innovation and Skills",28/04/2011,Entertaining Overseas (Programme),Knowledge and Innovation Group - Research Base,FOREIGN AND COMMONWEALTH OFFICE (FCO),1024121,465.95
"Department for Business, Innovation and Skills","Department for Business, Innovation and Skills",28/04/2011,Air Fares  - Overseas (Programme),Knowledge and Innovation Group - Research Base,FOREIGN AND COMMONWEALTH OFFICE (FCO),1024122,6147.64
"Department for Business, Innovation and Skills","Department for Business, Innovation and Skills",28/04/2011,Air Fares  - Overseas (Programme),Knowledge and Innovation Group - Research Base,FOREIGN AND COMMONWEALTH OFFICE (FCO),1024122,2657.62
"Department for Business, Innovation and Skills","Department for Business, Innovation and Skills",06/04/2011,Entertaining Overseas (Programme),Knowledge and Innovation Group - Research Base,ENGINEERING AND PHYSICAL SCIENCES RESEARCH COUNCIL,1024246,3831.1
"Department for Business, Innovation and Skills","Department for Business, Innovation and Skills",12/04/2011,Air Fares  - Overseas (Programme),Knowledge and Innovation Group - Research Base,SCIENCE AND TECHNOLOGY FACILITIES COUNCIL,1024752,263.2
"Department for Business, Innovation and Skills","Department for Business, Innovation and Skills",12/04/2011,Hotels- Overseas  (Programme),Knowledge and Innovation Group - Research Base,SCIENCE AND TECHNOLOGY FACILITIES COUNCIL,1024752,3216.63
"Department for Business, Innovation and Skills","Department for Business, Innovation and Skills",13/04/2011,Entertaining UK (Programme),Knowledge and Innovation Group - Research Base,THE ROYAL SOCIETY,1024862,515.7
"Department for Business, Innovation and Skills","Department for Business, Innovation and Skills",13/04/2011,Hire of Conference Facilities (Programme),Knowledge and Innovation Group - Research Base,THE ROYAL SOCIETY,1024862,756
"Department for Business, Innovation and Skills","Department for Business, Innovation and Skills",13/04/2011,Other IT Costs (Programme),Knowledge and Innovation Group - Research Base,THE ROYAL SOCIETY,1024862,210
"Department for Business, Innovation and Skills","Department for Business, Innovation and Skills",15/04/2011,Grants - Current - Other,Knowledge and Innovation Group - Research Base,ASSOCIATION OF COMMONWEALTH UNIVERSITIES,1025024,29356.36
"Department for Business, Innovation and Skills","Department for Business, Innovation and Skills",18/04/2011,Air Fares  - Overseas (Programme),Knowledge and Innovation Group - Research Base,IMPERIAL COLLEGE LONDON,1025057,5369
"Department for Business, Innovation and Skills","Department for Business, Innovation and Skills",19/04/2011,Air Fares  - Overseas (Programme),Knowledge and Innovation Group - Research Base,PLYMOUTH MARINE LABORATORY,1025318,447.58
"Department for Business, Innovation and Skills","Department for Business, Innovation and Skills",19/04/2011,Hotels- Overseas  (Programme),Knowledge and Innovation Group - Research Base,PLYMOUTH MARINE LABORATORY,1025318,356.06
"Department for Business, Innovation and Skills","Department for Business, Innovation and Skills",20/04/2011,Air Fares  - Overseas (Programme),Knowledge and Innovation Group - Research Base,NUCLEAR DECOMMISSIONING AUTHORITY,1025360,1254.2
"Department for Business, Innovation and Skills","Department for Business, Innovation and Skills",20/04/2011,Taxis- Overseas (Programme),Knowledge and Innovation Group - Research Base,NUCLEAR DECOMMISSIONING AUTHORITY,1025360,28.96
"Department for Business, Innovation and Skills","Department for Business, Innovation and Skills",20/04/2011,Hotels- Overseas  (Programme),Knowledge and Innovation Group - Research Base,NUCLEAR DECOMMISSIONING AUTHORITY,1025360,300.89
"Department for Business, Innovation and Skills","Department for Business, Innovation and Skills",20/04/2011,Subsistence Payments- Overseas (Programme),Knowledge and Innovation Group - Research Base,NUCLEAR DECOMMISSIONING AUTHORITY,1025360,60.24
"Department for Business, Innovation and Skills","Department for Business, Innovation and Skills",21/04/2011,Air Fares  - Overseas (Programme),Knowledge and Innovation Group - Research Base,ECONOMIC AND SOCIAL RESEARCH COUNCIL ESRC,1025406,4800
"Department for Business, Innovation and Skills","Department for Business, Innovation and Skills",21/04/2011,Taxis- Overseas (Programme),Knowledge and Innovation Group - Research Base,ECONOMIC AND SOCIAL RESEARCH COUNCIL ESRC,1025406,400
"Department for Business, Innovation and Skills","Department for Business, Innovation and Skills",21/04/2011,Hotels- Overseas  (Programme),Knowledge and Innovation Group - Research Base,ECONOMIC AND SOCIAL RESEARCH COUNCIL ESRC,1025406,4800
"Department for Business, Innovation and Skills","Department for Business, Innovation and Skills",21/04/2011,Grants - Current - Other,Knowledge and Innovation Group - Research Base,UNIVERSITY OF GLASGOW,1025463,6468.02
"Department for Business, Innovation and Skills","Department for Business, Innovation and Skills",21/04/2011,Air Fares  - Overseas (Programme),Knowledge and Innovation Group - Research Base,UNIVERSITY OF DURHAM,1025465,622.07
"Department for Business, Innovation and Skills","Department for Business, Innovation and Skills",21/04/2011,Hotels- Overseas  (Programme),Knowledge and Innovation Group - Research Base,UNIVERSITY OF DURHAM,1025465,360.92
"Department for Business, Innovation and Skills","Department for Business, Innovation and Skills",26/04/2011,Air Fares  - Overseas (Programme),Knowledge and Innovation Group - Research Base,THE ROYAL SOCIETY,1025488,2097.33
"Department for Business, Innovation and Skills","Department for Business, Innovation and Skills",26/04/2011,Hotels- Overseas  (Programme),Knowledge and Innovation Group - Research Base,THE ROYAL SOCIETY,1025488,1669.66
"Department for Business, Innovation and Skills","Department for Business, Innovation and Skills",26/04/2011,Air Fares  - Overseas (Programme),Knowledge and Innovation Group - Research Base,UNIVERSITY OF BRISTOL,1025495,1092.25
"Department for Business, Innovation and Skills","Department for Business, Innovation and Skills",26/04/2011,Hotels- Overseas  (Programme),Knowledge and Innovation Group - Research Base,UNIVERSITY OF BRISTOL,1025495,733.32
"Department for Business, Innovation and Skills","Department for Business, Innovation and Skills",26/04/2011,Grants - Current - Other,Knowledge and Innovation Group - Research Base,UNIVERSITY OF LIVERPOOL,1025617,2500
"Department for Business, Innovation and Skills","Department for Business, Innovation and Skills",27/04/2011,Rail Fares (Programme),Knowledge and Innovation Group - Research Base,MARK LEAVER CONSULTING LTD,1025635,75.5
"Department for Business, Innovation and Skills","Department for Business, Innovation and Skills",27/04/2011,Rail Fares - Overseas (Programme),Knowledge and Innovation Group - Research Base,MARK LEAVER CONSULTING LTD,1025635,19.02
"Department for Business, Innovation and Skills","Department for Business, Innovation and Skills",27/04/2011,Air Fares  - Overseas (Programme),Knowledge and Innovation Group - Research Base,MARK LEAVER CONSULTING LTD,1025635,112.03
"Department for Business, Innovation and Skills","Department for Business, Innovation and Skills",27/04/2011,Subsistence Payments- Overseas (Programme),Knowledge and Innovation Group - Research Base,MARK LEAVER CONSULTING LTD,1025635,34.59
"Department for Business, Innovation and Skills","Department for Business, Innovation and Skills",27/04/2011,Grants - Current - Other,Knowledge and Innovation Group - Research Base,UNIVERSITY OF LEEDS,1025637,4084.54
"Department for Business, Innovation and Skills","Department for Business, Innovation and Skills",27/04/2011,Taxis (Programme),Knowledge and Innovation Group - Research Base,KINGS COLLEGE LONDON,1025640,16
"Department for Business, Innovation and Skills","Department for Business, Innovation and Skills",27/04/2011,Air Fares  - Overseas (Programme),Knowledge and Innovation Group - Research Base,KINGS COLLEGE LONDON,1025640,6258.47
"Department for Business, Innovation and Skills","Department for Business, Innovation and Skills",27/04/2011,Hotels- Overseas  (Programme),Knowledge and Innovation Group - Research Base,KINGS COLLEGE LONDON,1025640,1276.12
"Department for Business, Innovation and Skills","Department for Business, Innovation and Skills",27/04/2011,Subsistence Payments- Overseas (Programme),Knowledge and Innovation Group - Research Base,KINGS COLLEGE LONDON,1025640,246.34
"Department for Business, Innovation and Skills","Department for Business, Innovation and Skills",27/04/2011,Air Fares  - Overseas (Programme),Knowledge and Innovation Group - Research Base,UNIVERSITY OF STRATHCLYDE,1025642,915
"Department for Business, Innovation and Skills","Department for Business, Innovation and Skills",27/04/2011,Air Fares  - Overseas (Programme),Knowledge and Innovation Group - Research Base,UNIVERSITY OF STRATHCLYDE,1025644,2608
"Department for Business, Innovation and Skills","Department for Business, Innovation and Skills",27/04/2011,Hotels- Overseas  (Programme),Knowledge and Innovation Group - Research Base,UNIVERSITY OF STRATHCLYDE,1025644,1656
"Department for Business, Innovation and Skills","Department for Business, Innovation and Skills",27/04/2011,Subsistence Payments- Overseas (Programme),Knowledge and Innovation Group - Research Base,UNIVERSITY OF STRATHCLYDE,1025644,633
"Department for Business, Innovation and Skills","Department for Business, Innovation and Skills",27/04/2011,Air Fares  - Overseas (Programme),Knowledge and Innovation Group - Research Base,UNIVERSITY OF STRATHCLYDE,1025645,1569.14
"Department for Business, Innovation and Skills","Department for Business, Innovation and Skills",27/04/2011,Air Fares  - Overseas (Programme),Knowledge and Innovation Group - Research Base,UNIVERSITY OF STRATHCLYDE,1025647,315.9
"Department for Business, Innovation and Skills","Department for Business, Innovation and Skills",27/04/2011,Air Fares  - Overseas (Programme),Knowledge and Innovation Group - Research Base,ROYAL BOTANIC GARDENS KEW,1025858,819.9
"Department for Business, Innovation and Skills","Department for Business, Innovation and Skills",27/04/2011,Hotels- Overseas  (Programme),Knowledge and Innovation Group - Research Base,ROYAL BOTANIC GARDENS KEW,1025858,186.51
"Department for Business, Innovation and Skills","Department for Business, Innovation and Skills",27/04/2011,Hire of Conference Facilities (Programme),Knowledge and Innovation Group - Research Base,CHURCH HOUSE CONFERENCE CENTRE LTD,1025862,1035
"Department for Business, Innovation and Skills","Department for Business, Innovation and Skills",18/04/2011,Air Fares  - Overseas (Programme),Knowledge and Innovation Group - Research Base,"Personal Expense, Name Witheld.",10277186,900
"Department for Business, Innovation and Skills","Department for Business, Innovation and Skills",18/04/2011,Air Fares  - Overseas (Programme),Knowledge and Innovation Group - Research Base,"Personal Expense, Name Witheld.",10277187,456.1
"Department for Business, Innovation and Skills","Department for Business, Innovation and Skills",18/04/2011,Hotels- Overseas  (Programme),Knowledge and Innovation Group - Research Base,"Personal Expense, Name Witheld.",10277187,622.32
"Department for Business, Innovation and Skills","Department for Business, Innovation and Skills",18/04/2011,Subsistence Payments- Overseas (Programme),Knowledge and Innovation Group - Research Base,"Personal Expense, Name Witheld.",10277187,450
"Department for Business, Innovation and Skills","Department for Business, Innovation and Skills",26/04/2011,Air Fares  - Overseas (Programme),Knowledge and Innovation Group - Research Base,"Personal Expense, Name Witheld.",10277253,591.7
"Department for Business, Innovation and Skills","Department for Business, Innovation and Skills",26/04/2011,Subsistence Payments- Overseas (Programme),Knowledge and Innovation Group - Research Base,"Personal Expense, Name Witheld.",10277253,500
"Department for Business, Innovation and Skills","Department for Business, Innovation and Skills",28/04/2011,Rail Fares - Overseas (Programme),Knowledge and Innovation Group - Research Base,"Personal Expense, Name Witheld.",10277255,15
"Department for Business, Innovation and Skills","Department for Business, Innovation and Skills",28/04/2011,Air Fares  - Overseas (Programme),Knowledge and Innovation Group - Research Base,"Personal Expense, Name Witheld.",10277255,223.98
"Department for Business, Innovation and Skills","Department for Business, Innovation and Skills",28/04/2011,Other Overseas Travel & Subsistence (Programme),Knowledge and Innovation Group - Research Base,"Personal Expense, Name Witheld.",10277255,21.24
"Department for Business, Innovation and Skills","Department for Business, Innovation and Skills",05/04/2011,Training (Agencies),Knowledge and Innovation Group - Government Office For Science,NATIONAL SCHOOL OF GOVERNMENT,1023970,1590
"Department for Business, Innovation and Skills","Department for Business, Innovation and Skills",06/04/2011,Publications,Knowledge and Innovation Group - Government Office For Science,JONES YARRELL LEADENHALL,1024144,62.5
"Department for Business, Innovation and Skills","Department for Business, Innovation and Skills",08/04/2011,PPM (Project & Programme Management) Training,Knowledge and Innovation Group - Government Office For Science,NATIONAL SCHOOL OF GOVERNMENT,1024476,1760
"Department for Business, Innovation and Skills","Department for Business, Innovation and Skills",28/04/2011,Professional Subscriptions,Knowledge and Innovation Group - Government Office For Science,HM REVENUE & CUSTOMS,1025354,793
"Department for Business, Innovation and Skills","Department for Business, Innovation and Skills",01/04/2011,Rail Fares,Knowledge and Innovation Group - Government Office For Science,"Personal Expense, Name Witheld.",10276870,9.5
"Department for Business, Innovation and Skills","Department for Business, Innovation and Skills",01/04/2011,Taxis,Knowledge and Innovation Group - Government Office For Science,"Personal Expense, Name Witheld.",10276870,4.9
"Department for Business, Innovation and Skills","Department for Business, Innovation and Skills",04/04/2011,Taxis Overseas,Knowledge and Innovation Group - Government Office For Science,"Personal Expense, Name Witheld.",10276917,30
"Department for Business, Innovation and Skills","Department for Business, Innovation and Skills",04/04/2011,Hotels Overseas,Knowledge and Innovation Group - Government Office For Science,"Personal Expense, Name Witheld.",10276917,191.57
"Department for Business, Innovation and Skills","Department for Business, Innovation and Skills",04/04/2011,Subsistence Payments Overseas,Knowledge and Innovation Group - Government Office For Science,"Personal Expense, Name Witheld.",10276917,92.17
"Department for Business, Innovation and Skills","Department for Business, Innovation and Skills",04/04/2011,Subsistence Payments Overseas,Knowledge and Innovation Group - Government Office For Science,"Personal Expense, Name Witheld.",10276917,10
"Department for Business, Innovation and Skills","Department for Business, Innovation and Skills",04/04/2011,Entertaining Overseas,Knowledge and Innovation Group - Government Office For Science,"Personal Expense, Name Witheld.",10276917,120
"Department for Business, Innovation and Skills","Department for Business, Innovation and Skills",04/04/2011,Entertaining Overseas,Knowledge and Innovation Group - Government Office For Science,"Personal Expense, Name Witheld.",10276917,4.96
"Department for Business, Innovation and Skills","Department for Business, Innovation and Skills",04/04/2011,Rail Fares,Knowledge and Innovation Group - Government Office For Science,"Personal Expense, Name Witheld.",10276918,32
"Department for Business, Innovation and Skills","Department for Business, Innovation and Skills",04/04/2011,Taxis,Knowledge and Innovation Group - Government Office For Science,"Personal Expense, Name Witheld.",10276918,12
"Department for Business, Innovation and Skills","Department for Business, Innovation and Skills",04/04/2011,Taxis,Knowledge and Innovation Group - Government Office For Science,"Personal Expense, Name Witheld.",10276918,13
"Department for Business, Innovation and Skills","Department for Business, Innovation and Skills",04/04/2011,Hotels Overseas,Knowledge and Innovation Group - Government Office For Science,"Personal Expense, Name Witheld.",10276918,26.93
"Department for Business, Innovation and Skills","Department for Business, Innovation and Skills",04/04/2011,Subsistence Payments Overseas,Knowledge and Innovation Group - Government Office For Science,"Personal Expense, Name Witheld.",10276918,40.08
"Department for Business, Innovation and Skills","Department for Business, Innovation and Skills",04/04/2011,Subsistence Payments Overseas,Knowledge and Innovation Group - Government Office For Science,"Personal Expense, Name Witheld.",10276918,60
"Department for Business, Innovation and Skills","Department for Business, Innovation and Skills",04/04/2011,Rail Fares,Knowledge and Innovation Group - Government Office For Science,"Personal Expense, Name Witheld.",10276919,23
"Department for Business, Innovation and Skills","Department for Business, Innovation and Skills",04/04/2011,Taxis,Knowledge and Innovation Group - Government Office For Science,"Personal Expense, Name Witheld.",10276919,127
"Department for Business, Innovation and Skills","Department for Business, Innovation and Skills",04/04/2011,Taxis Overseas,Knowledge and Innovation Group - Government Office For Science,"Personal Expense, Name Witheld.",10276919,10.96
"Department for Business, Innovation and Skills","Department for Business, Innovation and Skills",04/04/2011,Taxis Overseas,Knowledge and Innovation Group - Government Office For Science,"Personal Expense, Name Witheld.",10276919,6.29
"Department for Business, Innovation and Skills","Department for Business, Innovation and Skills",04/04/2011,Subsistence Payments Overseas,Knowledge and Innovation Group - Government Office For Science,"Personal Expense, Name Witheld.",10276919,4.32
"Department for Business, Innovation and Skills","Department for Business, Innovation and Skills",04/04/2011,Subsistence Payments Overseas,Knowledge and Innovation Group - Government Office For Science,"Personal Expense, Name Witheld.",10276919,40.3
"Department for Business, Innovation and Skills","Department for Business, Innovation and Skills",04/04/2011,Other Overseas Travel & Subsistence,Knowledge and Innovation Group - Government Office For Science,"Personal Expense, Name Witheld.",10276919,0.94
"Department for Business, Innovation and Skills","Department for Business, Innovation and Skills",06/04/2011,Subsistence Payments Overseas,Knowledge and Innovation Group - Government Office For Science,"Personal Expense, Name Witheld.",10276941,22.38
"Department for Business, Innovation and Skills","Department for Business, Innovation and Skills",06/04/2011,Other Overseas Travel & Subsistence,Knowledge and Innovation Group - Government Office For Science,"Personal Expense, Name Witheld.",10276941,2.86
"Department for Business, Innovation and Skills","Department for Business, Innovation and Skills",06/04/2011,Other Overseas Travel & Subsistence,Knowledge and Innovation Group - Government Office For Science,"Personal Expense, Name Witheld.",10276941,5.02
"Department for Business, Innovation and Skills","Department for Business, Innovation and Skills",13/04/2011,Rail Fares,Knowledge and Innovation Group - Government Office For Science,"Personal Expense, Name Witheld.",10277078,43.2
"Department for Business, Innovation and Skills","Department for Business, Innovation and Skills",13/04/2011,Taxis,Knowledge and Innovation Group - Government Office For Science,"Personal Expense, Name Witheld.",10277078,23.2
"Department for Business, Innovation and Skills","Department for Business, Innovation and Skills",13/04/2011,Subsistence Payments,Knowledge and Innovation Group - Government Office For Science,"Personal Expense, Name Witheld.",10277078,28.5
"Department for Business, Innovation and Skills","Department for Business, Innovation and Skills",13/04/2011,Other UK Travel & Subsistence,Knowledge and Innovation Group - Government Office For Science,"Personal Expense, Name Witheld.",10277078,35.25
"Department for Business, Innovation and Skills","Department for Business, Innovation and Skills",13/04/2011,Rail Fares,Knowledge and Innovation Group - Government Office For Science,"Personal Expense, Name Witheld.",10277079,30.8
"Department for Business, Innovation and Skills","Department for Business, Innovation and Skills",13/04/2011,Taxis Overseas,Knowledge and Innovation Group - Government Office For Science,"Personal Expense, Name Witheld.",10277079,98.5
"Department for Business, Innovation and Skills","Department for Business, Innovation and Skills",13/04/2011,Hotels Overseas,Knowledge and Innovation Group - Government Office For Science,"Personal Expense, Name Witheld.",10277079,152.78
"Department for Business, Innovation and Skills","Department for Business, Innovation and Skills",13/04/2011,Subsistence Payments Overseas,Knowledge and Innovation Group - Government Office For Science,"Personal Expense, Name Witheld.",10277079,82.53
"Department for Business, Innovation and Skills","Department for Business, Innovation and Skills",13/04/2011,Other Overseas Travel & Subsistence,Knowledge and Innovation Group - Government Office For Science,"Personal Expense, Name Witheld.",10277079,26.74
"Department for Business, Innovation and Skills","Department for Business, Innovation and Skills",13/04/2011,Entertaining Overseas,Knowledge and Innovation Group - Government Office For Science,"Personal Expense, Name Witheld.",10277079,5.64
"Department for Business, Innovation and Skills","Department for Business, Innovation and Skills",13/04/2011,Other UK Travel & Subsistence,Knowledge and Innovation Group - Government Office For Science,"Personal Expense, Name Witheld.",10277083,104.2
"Department for Business, Innovation and Skills","Department for Business, Innovation and Skills",13/04/2011,Rail Fares Overseas,Knowledge and Innovation Group - Government Office For Science,"Personal Expense, Name Witheld.",10277083,37
"Department for Business, Innovation and Skills","Department for Business, Innovation and Skills",13/04/2011,Subsistence Payments Overseas,Knowledge and Innovation Group - Government Office For Science,"Personal Expense, Name Witheld.",10277083,5.74
"Department for Business, Innovation and Skills","Department for Business, Innovation and Skills",26/04/2011,Rail Fares,Knowledge and Innovation Group - Government Office For Science,"Personal Expense, Name Witheld.",10277261,43.4
"Department for Business, Innovation and Skills","Department for Business, Innovation and Skills",26/04/2011,Taxis Overseas,Knowledge and Innovation Group - Government Office For Science,"Personal Expense, Name Witheld.",10277261,27.56
"Department for Business, Innovation and Skills","Department for Business, Innovation and Skills",26/04/2011,Subsistence Payments Overseas,Knowledge and Innovation Group - Government Office For Science,"Personal Expense, Name Witheld.",10277261,28.88
"Department for Business, Innovation and Skills","Department for Business, Innovation and Skills",26/04/2011,Other Overseas Travel & Subsistence,Knowledge and Innovation Group - Government Office For Science,"Personal Expense, Name Witheld.",10277261,277.97
"Department for Business, Innovation and Skills","Department for Business, Innovation and Skills",07/04/2011,Hire of Conference Facilities (Programme),Knowledge and Innovation Group - Government Office For Science,KULIMA INTEGRATED DEVELOPMENT SOLUTIONS (PTY) LTD,1022421,8722.05
"Department for Business, Innovation and Skills","Department for Business, Innovation and Skills",01/04/2011,Research & Development Expenditure (Programme),Knowledge and Innovation Group - Government Office For Science,SUSAN MARTIN,1023375,4571.25
"Department for Business, Innovation and Skills","Department for Business, Innovation and Skills",01/04/2011,Research & Development Expenditure (Programme),Knowledge and Innovation Group - Government Office For Science,KATHERINE NORMAN,1023551,385
"Department for Business, Innovation and Skills","Department for Business, Innovation and Skills",01/04/2011,Research & Development Expenditure (Programme),Knowledge and Innovation Group - Government Office For Science,OLIVER B LINTON T/A LINTON ECONOMETRICS,1023659,8800
"Department for Business, Innovation and Skills","Department for Business, Innovation and Skills",01/04/2011,Research & Development Expenditure (Programme),Knowledge and Innovation Group - Government Office For Science,SYRITTA ALGORITHMICS LTD,1023661,5925.2
"Department for Business, Innovation and Skills","Department for Business, Innovation and Skills",01/04/2011,Research & Development Expenditure (Programme),Knowledge and Innovation Group - Government Office For Science,KAI LORENZEN,1023742,1200
"Department for Business, Innovation and Skills","Department for Business, Innovation and Skills",04/04/2011,Research & Development Expenditure (Programme),Knowledge and Innovation Group - Government Office For Science,TRIBAL CONSULTING LTD,1023898,6847.6
"Department for Business, Innovation and Skills","Department for Business, Innovation and Skills",04/04/2011,Research & Development Expenditure (Programme),Knowledge and Innovation Group - Government Office For Science,LABFIN LTD,1023908,7674.1
"Department for Business, Innovation and Skills","Department for Business, Innovation and Skills",13/04/2011,Research & Development Expenditure (Programme),Knowledge and Innovation Group - Government Office For Science,CITY INN LTD T/A MINT HOTEL WESTMINSTER,1024105,1191.88
"Department for Business, Innovation and Skills","Department for Business, Innovation and Skills",13/04/2011,Research & Development Expenditure (Programme),Knowledge and Innovation Group - Government Office For Science,CITY INN LTD T/A MINT HOTEL WESTMINSTER,1024105,105.95
"Department for Business, Innovation and Skills","Department for Business, Innovation and Skills",06/04/2011,Research & Development Expenditure (Programme),Knowledge and Innovation Group - Government Office For Science,LAURA MCCAFFREY,1024113,5774.14
"Department for Business, Innovation and Skills","Department for Business, Innovation and Skills",06/04/2011,Research & Development Expenditure (Programme),Knowledge and Innovation Group - Government Office For Science,MIKE BOLAND,1024117,1230
"Department for Business, Innovation and Skills","Department for Business, Innovation and Skills",06/04/2011,Catering Services (Programme),Knowledge and Innovation Group - Government Office For Science,SPOILT FOR CHOICE LTD,1024126,159.55
"Department for Business, Innovation and Skills","Department for Business, Innovation and Skills",06/04/2011,Research & Development Expenditure (Programme),Knowledge and Innovation Group - Government Office For Science,QUANTITATIVE SOFTWARE CONSULTING LTD,1024138,8000
"Department for Business, Innovation and Skills","Department for Business, Innovation and Skills",06/04/2011,Research & Development Expenditure (Programme),Knowledge and Innovation Group - Government Office For Science,ISTOCKPHOTO LP,1024213,573.75
"Department for Business, Innovation and Skills","Department for Business, Innovation and Skills",06/04/2011,Research & Development Expenditure (Programme),Knowledge and Innovation Group - Government Office For Science,ISTOCKPHOTO LP,1024215,896.5
"Department for Business, Innovation and Skills","Department for Business, Innovation and Skills",12/04/2011,Research & Development Expenditure (Programme),Knowledge and Innovation Group - Government Office For Science,LEI,1024279,11491.66
"Department for Business, Innovation and Skills","Department for Business, Innovation and Skills",12/04/2011,Research & Development Expenditure (Programme),Knowledge and Innovation Group - Government Office For Science,PROFESSOR DAVID THOMAS,1024664,10328.9
"Department for Business, Innovation and Skills","Department for Business, Innovation and Skills",13/04/2011,Research & Development Expenditure (Programme),Knowledge and Innovation Group - Government Office For Science,ZIAD DAOUD,1024848,250
"Department for Business, Innovation and Skills","Department for Business, Innovation and Skills",13/04/2011,Research & Development Expenditure (Programme),Knowledge and Innovation Group - Government Office For Science,ABHISEK BANERJEE,1024850,250
"Department for Business, Innovation and Skills","Department for Business, Innovation and Skills",13/04/2011,Research & Development Expenditure (Programme),Knowledge and Innovation Group - Government Office For Science,SUJIN PARK,1024851,250
"Department for Business, Innovation and Skills","Department for Business, Innovation and Skills",13/04/2011,Research & Development Expenditure (Programme),Knowledge and Innovation Group - Government Office For Science,ZZZZRACHEL YANG YAN,1024857,250
"Department for Business, Innovation and Skills","Department for Business, Innovation and Skills",13/04/2011,Research & Development Expenditure (Programme),Knowledge and Innovation Group - Government Office For Science,PROMOTIONAL LOGISTICS LTD,1024858,16013.26
"Department for Business, Innovation and Skills","Department for Business, Innovation and Skills",18/04/2011,Research & Development Expenditure (Programme),Knowledge and Innovation Group - Government Office For Science,JONATHAN BROGAARD,1024860,1188.01
"Department for Business, Innovation and Skills","Department for Business, Innovation and Skills",18/04/2011,Research & Development Expenditure (Programme),Knowledge and Innovation Group - Government Office For Science,ALBERT MENKVELD,1024861,506.29
"Department for Business, Innovation and Skills","Department for Business, Innovation and Skills",13/04/2011,Research & Development Expenditure (Programme),Knowledge and Innovation Group - Government Office For Science,ZZZZBONSOO KOO,1024863,250
"Department for Business, Innovation and Skills","Department for Business, Innovation and Skills",13/04/2011,Research & Development Expenditure (Programme),Knowledge and Innovation Group - Government Office For Science,ZZZZSVETLANA BRYZGALOVA,1024864,250
"Department for Business, Innovation and Skills","Department for Business, Innovation and Skills",13/04/2011,Research & Development Expenditure (Programme),Knowledge and Innovation Group - Government Office For Science,CHRISTOPHE BENE,1024866,800
"Department for Business, Innovation and Skills","Department for Business, Innovation and Skills",13/04/2011,Research & Development Expenditure (Programme),Knowledge and Innovation Group - Government Office For Science,ONE QUEEN ANNE'S GATE,1024875,1350
"Department for Business, Innovation and Skills","Department for Business, Innovation and Skills",13/04/2011,Research & Development Expenditure (Programme),Knowledge and Innovation Group - Government Office For Science,ONE QUEEN ANNE'S GATE,1024875,270
"Department for Business, Innovation and Skills","Department for Business, Innovation and Skills",13/04/2011,Research & Development Expenditure (Programme),Knowledge and Innovation Group - Government Office For Science,THE INSTITUTE OF DEVELOPMENT STUDIES,1024886,1069
"Department for Business, Innovation and Skills","Department for Business, Innovation and Skills",14/04/2011,Research & Development Expenditure (Programme),Knowledge and Innovation Group - Government Office For Science,MIDDLESEX FLOOD RESEARCH ASSOCIATES LTD,1024906,7000
"Department for Business, Innovation and Skills","Department for Business, Innovation and Skills",20/04/2011,Research & Development Expenditure (Programme),Knowledge and Innovation Group - Government Office For Science,OECD,1024936,474.91
"Department for Business, Innovation and Skills","Department for Business, Innovation and Skills",19/04/2011,Research & Development Expenditure (Programme),Knowledge and Innovation Group - Government Office For Science,IMPERIAL COLLEGE LONDON,1024977,177
"Department for Business, Innovation and Skills","Department for Business, Innovation and Skills",18/04/2011,Research & Development Expenditure (Programme),Knowledge and Innovation Group - Government Office For Science,SUE HILL RECRUITMENT & SERVICES LTD,1025028,2425.63
"Department for Business, Innovation and Skills","Department for Business, Innovation and Skills",18/04/2011,Research & Development Expenditure (Programme),Knowledge and Innovation Group - Government Office For Science,SUE HILL RECRUITMENT & SERVICES LTD,1025028,1758.06
"Department for Business, Innovation and Skills","Department for Business, Innovation and Skills",19/04/2011,Research & Development Expenditure (Programme),Knowledge and Innovation Group - Government Office For Science,ANDREW GEDDES,1025139,1659
"Department for Business, Innovation and Skills","Department for Business, Innovation and Skills",20/04/2011,Research & Development Expenditure (Programme),Knowledge and Innovation Group - Government Office For Science,MIND,1025145,1120
"Department for Business, Innovation and Skills","Department for Business, Innovation and Skills",21/04/2011,Research & Development Expenditure (Programme),Knowledge and Innovation Group - Government Office For Science,SAMI CONSULTING LTD,1025398,9272.89
"Department for Business, Innovation and Skills","Department for Business, Innovation and Skills",21/04/2011,Research & Development Expenditure (Programme),Knowledge and Innovation Group - Government Office For Science,SAMI CONSULTING LTD,1025398,98.79
"Department for Business, Innovation and Skills","Department for Business, Innovation and Skills",21/04/2011,Research & Development Expenditure (Programme),Knowledge and Innovation Group - Government Office For Science,PROFESSOR TROND BJORNDAL,1025408,500
"Department for Business, Innovation and Skills","Department for Business, Innovation and Skills",28/04/2011,Research & Development Expenditure (Programme),Knowledge and Innovation Group - Government Office For Science,ADELPHI RESEARCH GMBH,1025412,440.55
"Department for Business, Innovation and Skills","Department for Business, Innovation and Skills",21/04/2011,Research & Development Expenditure (Programme),Knowledge and Innovation Group - Government Office For Science,CHURCH HOUSE CONFERENCE CENTRE LTD,1025459,729.25
"Department for Business, Innovation and Skills","Department for Business, Innovation and Skills",26/04/2011,Research & Development Expenditure (Programme),Knowledge and Innovation Group - Government Office For Science,OVERSEAS DEVELOPMENT INSTITUTE,1025473,5000
"Department for Business, Innovation and Skills","Department for Business, Innovation and Skills",26/04/2011,Research & Development Expenditure (Programme),Knowledge and Innovation Group - Government Office For Science,OVERSEAS DEVELOPMENT INSTITUTE,1025473,4500
"Department for Business, Innovation and Skills","Department for Business, Innovation and Skills",26/04/2011,Research & Development Expenditure (Programme),Knowledge and Innovation Group - Government Office For Science,OVERSEAS DEVELOPMENT INSTITUTE,1025473,250
"Department for Business, Innovation and Skills","Department for Business, Innovation and Skills",26/04/2011,Research & Development Expenditure (Programme),Knowledge and Innovation Group - Government Office For Science,PROFESSOR ANTHONY JAMES FIELDING,1025485,6250
"Department for Business, Innovation and Skills","Department for Business, Innovation and Skills",26/04/2011,Research & Development Expenditure (Programme),Knowledge and Innovation Group - Government Office For Science,PROFESSOR MARK TEWDWR-JONES,1025491,1200
"Department for Business, Innovation and Skills","Department for Business, Innovation and Skills",26/04/2011,Research & Development Expenditure (Programme),Knowledge and Innovation Group - Government Office For Science,BANK OF ENGLAND,1025497,263.6
"Department for Business, Innovation and Skills","Department for Business, Innovation and Skills",26/04/2011,Research & Development Expenditure (Programme),Knowledge and Innovation Group - Government Office For Science,SYRITTA ALGORITHMICS LTD,1025499,4000
"Department for Business, Innovation and Skills","Department for Business, Innovation and Skills",13/04/2011,Rail Fares (Programme),Knowledge and Innovation Group - Government Office For Science,"Personal Expense, Name Witheld.",10276871,218.6
"Department for Business, Innovation and Skills","Department for Business, Innovation and Skills",13/04/2011,Others UK Travel & Subsistence (Programme),Knowledge and Innovation Group - Government Office For Science,"Personal Expense, Name Witheld.",10276871,21.04
"Department for Business, Innovation and Skills","Department for Business, Innovation and Skills",05/04/2011,Rail Fares (Programme),Knowledge and Innovation Group - Government Office For Science,"Personal Expense, Name Witheld.",10276937,149.5
"Department for Business, Innovation and Skills","Department for Business, Innovation and Skills",05/04/2011,Mileage Allowances (Programme),Knowledge and Innovation Group - Government Office For Science,"Personal Expense, Name Witheld.",10276937,60
"Department for Business, Innovation and Skills","Department for Business, Innovation and Skills",05/04/2011,Hotels (Programme),Knowledge and Innovation Group - Government Office For Science,"Personal Expense, Name Witheld.",10276937,238
"Department for Business, Innovation and Skills","Department for Business, Innovation and Skills",05/04/2011,Others UK Travel & Subsistence (Programme),Knowledge and Innovation Group - Government Office For Science,"Personal Expense, Name Witheld.",10276937,48.19
"Department for Business, Innovation and Skills","Department for Business, Innovation and Skills",12/04/2011,Air Fares (Programme),Knowledge and Innovation Group - Government Office For Science,"Personal Expense, Name Witheld.",10277047,1857.69
"Department for Business, Innovation and Skills","Department for Business, Innovation and Skills",12/04/2011,Taxis (Programme),Knowledge and Innovation Group - Government Office For Science,"Personal Expense, Name Witheld.",10277047,71.8
"Department for Business, Innovation and Skills","Department for Business, Innovation and Skills",12/04/2011,Mileage Allowances (Programme),Knowledge and Innovation Group - Government Office For Science,"Personal Expense, Name Witheld.",10277047,16
"Department for Business, Innovation and Skills","Department for Business, Innovation and Skills",12/04/2011,Others UK Travel & Subsistence (Programme),Knowledge and Innovation Group - Government Office For Science,"Personal Expense, Name Witheld.",10277047,19.9
"Department for Business, Innovation and Skills","Department for Business, Innovation and Skills",11/04/2011,Rail Fares (Programme),Knowledge and Innovation Group - Government Office For Science,"Personal Expense, Name Witheld.",10277064,56.5
"Department for Business, Innovation and Skills","Department for Business, Innovation and Skills",12/04/2011,Rail Fares (Programme),Knowledge and Innovation Group - Government Office For Science,"Personal Expense, Name Witheld.",10277066,36
"Department for Business, Innovation and Skills","Department for Business, Innovation and Skills",12/04/2011,Taxis (Programme),Knowledge and Innovation Group - Government Office For Science,"Personal Expense, Name Witheld.",10277066,20.6
"Department for Business, Innovation and Skills","Department for Business, Innovation and Skills",12/04/2011,Air Fares  - Overseas (Programme),Knowledge and Innovation Group - Government Office For Science,"Personal Expense, Name Witheld.",10277066,2242.86
"Department for Business, Innovation and Skills","Department for Business, Innovation and Skills",26/04/2011,Rail Fares (Programme),Knowledge and Innovation Group - Government Office For Science,"Personal Expense, Name Witheld.",10277258,83.15
"Department for Business, Innovation and Skills","Department for Business, Innovation and Skills",26/04/2011,Taxis (Programme),Knowledge and Innovation Group - Government Office For Science,"Personal Expense, Name Witheld.",10277258,12.4
"Department for Business, Innovation and Skills","Department for Business, Innovation and Skills",26/04/2011,Subsistence Payments (Programme),Knowledge and Innovation Group - Government Office For Science,"Personal Expense, Name Witheld.",10277258,7.89
"Department for Business, Innovation and Skills","Department for Business, Innovation and Skills",26/04/2011,Research & Development Expenditure (Programme),Knowledge and Innovation Group - Government Office For Science,"Personal Expense, Name Witheld.",10277263,216.88
"Department for Business, Innovation and Skills","Department for Business, Innovation and Skills",26/04/2011,Rail Fares (Programme),Knowledge and Innovation Group - Government Office For Science,"Personal Expense, Name Witheld.",10277269,48.8
"Department for Business, Innovation and Skills","Department for Business, Innovation and Skills",26/04/2011,Taxis (Programme),Knowledge and Innovation Group - Government Office For Science,"Personal Expense, Name Witheld.",10277269,24.55
"Department for Business, Innovation and Skills","Department for Business, Innovation and Skills",26/04/2011,Hotels (Programme),Knowledge and Innovation Group - Government Office For Science,"Personal Expense, Name Witheld.",10277269,224.4
"Department for Business, Innovation and Skills","Department for Business, Innovation and Skills",26/04/2011,Subsistence Payments (Programme),Knowledge and Innovation Group - Government Office For Science,"Personal Expense, Name Witheld.",10277269,7.84
"Department for Business, Innovation and Skills","Department for Business, Innovation and Skills",26/04/2011,Others UK Travel & Subsistence (Programme),Knowledge and Innovation Group - Government Office For Science,"Personal Expense, Name Witheld.",10277269,13.2
"Department for Business, Innovation and Skills","Department for Business, Innovation and Skills",06/04/2011,Leadership & People Management Training,Knowledge and Innovation Group - Government Office For Science,DOD'S PARLIAMENTARY COMMUNICATIONS LTD (WESTMINSTER EXPLAINED),1024154,295
"Department for Business, Innovation and Skills","Department for Business, Innovation and Skills",06/04/2011,Hire of Conference Facilities,Knowledge and Innovation Group - Government Office For Science,THE GLASGOWS GROUP,1024216,5501
"Department for Business, Innovation and Skills","Department for Business, Innovation and Skills",06/04/2011,Leadership & People Management Training,Knowledge and Innovation Group - Government Office For Science,DOD'S PARLIAMENTARY COMMUNICATIONS LTD (WESTMINSTER EXPLAINED),1024218,480
"Department for Business, Innovation and Skills","Department for Business, Innovation and Skills",06/04/2011,Media Services,Knowledge and Innovation Group - Government Office For Science,IMPERIAL COLLEGE LONDON,1024220,4750
"Department for Business, Innovation and Skills","Department for Business, Innovation and Skills",12/04/2011,Publications,Knowledge and Innovation Group - Government Office For Science,DOD'S PARLIAMENTARY COMMUNICATIONS LTD (WESTMINSTER EXPLAINED),1024668,100
"Department for Business, Innovation and Skills","Department for Business, Innovation and Skills",15/04/2011,Contract Management,Knowledge and Innovation Group - Government Office For Science,ECONOMIC AND SOCIAL RESEARCH COUNCIL ESRC,1024945,2529.55
"Department for Business, Innovation and Skills","Department for Business, Innovation and Skills",15/04/2011,Publications,Knowledge and Innovation Group - Government Office For Science,JONES YARRELL LEADENHALL,1024953,130.5
"Department for Business, Innovation and Skills","Department for Business, Innovation and Skills",26/04/2011,Secondees (not paid directly),Knowledge and Innovation Group - Government Office For Science,DSTL,1025496,8603.69
"Department for Business, Innovation and Skills","Department for Business, Innovation and Skills",04/04/2011,Rail Fares,Knowledge and Innovation Group - Government Office For Science,"Personal Expense, Name Witheld.",10276902,53.3
"Department for Business, Innovation and Skills","Department for Business, Innovation and Skills",04/04/2011,Taxis,Knowledge and Innovation Group - Government Office For Science,"Personal Expense, Name Witheld.",10276902,22
"Department for Business, Innovation and Skills","Department for Business, Innovation and Skills",04/04/2011,Other UK Travel & Subsistence,Knowledge and Innovation Group - Government Office For Science,"Personal Expense, Name Witheld.",10276902,3.5
"Department for Business, Innovation and Skills","Department for Business, Innovation and Skills",04/04/2011,Rail Fares,Knowledge and Innovation Group - Government Office For Science,"Personal Expense, Name Witheld.",10276903,79.4
"Department for Business, Innovation and Skills","Department for Business, Innovation and Skills",04/04/2011,Taxis,Knowledge and Innovation Group - Government Office For Science,"Personal Expense, Name Witheld.",10276903,20
"Department for Business, Innovation and Skills","Department for Business, Innovation and Skills",04/04/2011,Other UK Travel & Subsistence,Knowledge and Innovation Group - Government Office For Science,"Personal Expense, Name Witheld.",10276903,3.5
"Department for Business, Innovation and Skills","Department for Business, Innovation and Skills",13/04/2011,Air Fares,Knowledge and Innovation Group - Government Office For Science,"Personal Expense, Name Witheld.",10277089,231.4
"Department for Business, Innovation and Skills","Department for Business, Innovation and Skills",13/04/2011,Taxis,Knowledge and Innovation Group - Government Office For Science,"Personal Expense, Name Witheld.",10277089,23
"Department for Business, Innovation and Skills","Department for Business, Innovation and Skills",13/04/2011,Air Fares Overseas,Knowledge and Innovation Group - Government Office For Science,"Personal Expense, Name Witheld.",10277089,170.2
"Department for Business, Innovation and Skills","Department for Business, Innovation and Skills",13/04/2011,Rail Fares,Knowledge and Innovation Group - Government Office For Science,"Personal Expense, Name Witheld.",10277090,131.25
"Department for Business, Innovation and Skills","Department for Business, Innovation and Skills",13/04/2011,Air Fares,Knowledge and Innovation Group - Government Office For Science,"Personal Expense, Name Witheld.",10277090,229.76
"Department for Business, Innovation and Skills","Department for Business, Innovation and Skills",13/04/2011,Mileage Allowances,Knowledge and Innovation Group - Government Office For Science,"Personal Expense, Name Witheld.",10277090,25.6
"Department for Business, Innovation and Skills","Department for Business, Innovation and Skills",28/04/2011,Grants - Current - Other,Knowledge and Innovation Group - Research Base,NHS GREATER GLASGOW AND CLYDE,1025914,14594.73
"Department for Business, Innovation and Skills","Department for Business, Innovation and Skills",15/04/2011,Grants - Current - Other,Knowledge and Innovation Group - Research Base,TECHNOPOLIS LTD,1025011,26040
"Department for Business, Innovation and Skills","Department for Business, Innovation and Skills",08/04/2011,Publications,Knowledge and Innovation Group - Office of the Knowledge & Innovation DG,JONES YARRELL LEADENHALL,1024435,108.57
"Department for Business, Innovation and Skills","Department for Business, Innovation and Skills",15/04/2011,Other Telephone Costs,Knowledge and Innovation Group - Office of the Knowledge & Innovation DG,PREMIERE CONFERENCING IRELAND LTD,1024948,172.82
"Department for Business, Innovation and Skills","Department for Business, Innovation and Skills",01/04/2011,Grants - Current - Other,Knowledge and Innovation Group - Office of the Knowledge & Innovation DG,UK SPACE AGENCY,1023631,33750000
"Department for Business, Innovation and Skills","Department for Business, Innovation and Skills",14/04/2011,Taxis,Knowledge and Innovation Group - Research Base,"Personal Expense, Name Witheld.",10277108,12.4
"Department for Business, Innovation and Skills","Department for Business, Innovation and Skills",14/04/2011,Other UK Travel & Subsistence,Knowledge and Innovation Group - Research Base,"Personal Expense, Name Witheld.",10277108,7.4
"Department for Business, Innovation and Skills","Department for Business, Innovation and Skills",14/04/2011,Taxis Overseas,Knowledge and Innovation Group - Research Base,"Personal Expense, Name Witheld.",10277108,58.78
"Department for Business, Innovation and Skills","Department for Business, Innovation and Skills",14/04/2011,Hotels Overseas,Knowledge and Innovation Group - Research Base,"Personal Expense, Name Witheld.",10277108,44.27
"Department for Business, Innovation and Skills","Department for Business, Innovation and Skills",14/04/2011,Subsistence Payments Overseas,Knowledge and Innovation Group - Research Base,"Personal Expense, Name Witheld.",10277108,18.69
"Department for Business, Innovation and Skills","Department for Business, Innovation and Skills",05/04/2011,Grants - Current - Other,Knowledge and Innovation Group - Research Base,SCOTTISH NATURAL HERITAGE,1023927,14308.77
"Department for Business, Innovation and Skills","Department for Business, Innovation and Skills",04/04/2011,Grants - Current - Other,Knowledge and Innovation Group - Research Base,DEPARTMENT OF HEALTH,1023932,6000
"Department for Business, Innovation and Skills","Department for Business, Innovation and Skills",06/04/2011,Research & Development Expenditure (Programme),Knowledge and Innovation Group - Research Base,MARKET OPINION RESEARCH INTERNATIONAL LTD T/A IPSOS MORI,1024250,102000
"Department for Business, Innovation and Skills","Department for Business, Innovation and Skills",12/04/2011,Grants - Current - Other,Knowledge and Innovation Group - Research Base,BIOTECHNOLOGY AND BIOLOGICAL SCIENCE RESEARCH COUNCIL,1024391,22325.75
"Department for Business, Innovation and Skills","Department for Business, Innovation and Skills",08/04/2011,Grants - Current - Other,Knowledge and Innovation Group - Research Base,BRITISH SCIENCE ASSOCIATION (THE BRITISH ASSOCIATION FOR THE ADVANCEMENT OF SCIENCE),1024440,98240
"Department for Business, Innovation and Skills","Department for Business, Innovation and Skills",27/04/2011,Purchase of  Advertising and Publicity (Programme),Knowledge and Innovation Group - Research Base,COI COMMUNICATIONS,1025753,-49724
"Department for Business, Innovation and Skills","Department for Business, Innovation and Skills",01/04/2011,Grants - Current - Other,Knowledge and Innovation Group - Research Base,THE ROYAL INSTITUTION OF GREAT BRITAIN,1023813,224.19
"Department for Business, Innovation and Skills","Department for Business, Innovation and Skills",13/04/2011,Grants - Current - Other,Knowledge and Innovation Group - Research Base,ALPHAGALILEO FOUNDATION,1024766,15000
"Department for Business, Innovation and Skills","Department for Business, Innovation and Skills",13/04/2011,Grants - Current - Other,Knowledge and Innovation Group - Research Base,ALPHAGALILEO FOUNDATION,1024766,3500
"Department for Business, Innovation and Skills","Department for Business, Innovation and Skills",06/04/2011,Grants - Current - Other,Knowledge and Innovation Group - Research Base,FOUNDATION FOR SCIENCE & TECHNOLOGY,1024165,35000
"Department for Business, Innovation and Skills","Department for Business, Innovation and Skills",06/04/2011,Grants - Current - Other,Knowledge and Innovation Group - Research Base,"RSA (THE ROYAL SOCIETY FOR THE ENCOURAGEMENT OF ARTS, MANUFACTURES AND COMMERCE)",1024224,14630
"Department for Business, Innovation and Skills","Department for Business, Innovation and Skills",07/04/2011,Grant in Aid - Current -Other,Knowledge and Innovation Group - Research Base,MEDICAL RESEARCH COUNCIL,1024244,101600000
"Department for Business, Innovation and Skills","Department for Business, Innovation and Skills",07/04/2011,Grant in Aid - Current -Other,Knowledge and Innovation Group - Research Base,NATURAL ENVIRONMENT RESEARCH COUNCIL (BGS BRITISH GEOLOGICAL SURVEY),1024252,45000000
"Department for Business, Innovation and Skills","Department for Business, Innovation and Skills",07/04/2011,Grant in Aid - Current -Other,Knowledge and Innovation Group - Research Base,ENGINEERING AND PHYSICAL SCIENCES RESEARCH COUNCIL,1024241,120000000
"Department for Business, Innovation and Skills","Department for Business, Innovation and Skills",07/04/2011,Grant in Aid - Current -Other,Knowledge and Innovation Group - Research Base,BIOTECHNOLOGY AND BIOLOGICAL SCIENCE RESEARCH COUNCIL,1024240,25000000
"Department for Business, Innovation and Skills","Department for Business, Innovation and Skills",07/04/2011,Grant in Aid - Current -Other,Knowledge and Innovation Group - Research Base,ECONOMIC AND SOCIAL RESEARCH COUNCIL ESRC,1024243,12000000
"Department for Business, Innovation and Skills","Department for Business, Innovation and Skills",07/04/2011,Grant in Aid - Current -Other,Knowledge and Innovation Group - Research Base,BIOTECHNOLOGY AND BIOLOGICAL SCIENCE RESEARCH COUNCIL,1024253,5000000
"Department for Business, Innovation and Skills","Department for Business, Innovation and Skills",05/04/2011,Grants - Current - Other,Knowledge and Innovation Group - Research Base,THE ROYAL SOCIETY,1023984,500000
"Department for Business, Innovation and Skills","Department for Business, Innovation and Skills",07/04/2011,Grant in Aid - Current -Other,Knowledge and Innovation Group - Research Base,ARTS AND HUMANITIES RESEARCH COUNCIL,1024238,1000000
"Department for Business, Innovation and Skills","Department for Business, Innovation and Skills",05/04/2011,Grants - Current - Other,Knowledge and Innovation Group - Research Base,THE BRITISH ACADEMY,1023948,2750000
"Department for Business, Innovation and Skills","Department for Business, Innovation and Skills",01/04/2011,Grant in Aid - Current -Other,Knowledge and Innovation Group - Research Base,SCIENCE AND TECHNOLOGY FACILITIES COUNCIL,1023628,118500000
"Department for Business, Innovation and Skills","Department for Business, Innovation and Skills",08/04/2011,Secondees (not paid directly),Knowledge and Innovation Group - Research Base,IMPERIAL COLLEGE LONDON,1024386,14128.37
"Department for Business, Innovation and Skills","Department for Business, Innovation and Skills",15/04/2011,Other Training Costs,Knowledge and Innovation Group - Research Base,OFFICE FOR NATIONAL STATISTICS,1024954,216
"Department for Business, Innovation and Skills","Department for Business, Innovation and Skills",13/04/2011,Accommodation Rentals,Finance & Commercial Group - Commercial Directorate,BIOTECHNOLOGY AND BIOLOGICAL SCIENCE RESEARCH COUNCIL,1024889,8137.2
"Department for Business, Innovation and Skills","Department for Business, Innovation and Skills",20/04/2011,Computer Equipment,Finance & Commercial Group - Commercial Directorate,FUJITSU SERVICES LTD,1024950,186.3
"Department for Business, Innovation and Skills","Department for Business, Innovation and Skills",19/04/2011,Capital Grants - Other,Business & Skills Group - Business Competitiveness - Secretariat/GRU,SCIENCE & TECHNOLOGY FACILITIES COUNCIL,1025268,2761514.44
"Department for Business, Innovation and Skills","Department for Business, Innovation and Skills",13/04/2011,Leadership & People Management Training,Business & Skills Group - Business Competitiveness - Secretariat/GRU,NATIONAL SCHOOL OF GOVERNMENT (CMPS),1024843,6640
"Department for Business, Innovation and Skills","Department for Business, Innovation and Skills",14/04/2011,Conference and Exhibition Services (Programme),Business & Skills Group - Advanced Manufacturing Industries,FOREIGN AND COMMONWEALTH OFFICE (FCO),1022102,836.44
"Department for Business, Innovation and Skills","Department for Business, Innovation and Skills",14/04/2011,Conference and Exhibition Services (Programme),Business & Skills Group - Advanced Manufacturing Industries,FOREIGN AND COMMONWEALTH OFFICE (FCO),1022105,562.1
"Department for Business, Innovation and Skills","Department for Business, Innovation and Skills",14/04/2011,Conference and Exhibition Services (Programme),Business & Skills Group - Advanced Manufacturing Industries,FOREIGN AND COMMONWEALTH OFFICE (FCO),1022106,95.61
"Department for Business, Innovation and Skills","Department for Business, Innovation and Skills",14/04/2011,Conference and Exhibition Services (Programme),Business & Skills Group - Advanced Manufacturing Industries,FOREIGN AND COMMONWEALTH OFFICE (FCO),1022108,63.74
"Department for Business, Innovation and Skills","Department for Business, Innovation and Skills",27/04/2011,Conference and Exhibition Services (Programme),Business & Skills Group - Advanced Manufacturing Industries,FOREIGN AND COMMONWEALTH OFFICE (FCO),1023584,69.92
"Department for Business, Innovation and Skills","Department for Business, Innovation and Skills",28/04/2011,Conference and Exhibition Services (Programme),Business & Skills Group - Advanced Manufacturing Industries,FOREIGN AND COMMONWEALTH OFFICE (FCO),1023636,586.71
"Department for Business, Innovation and Skills","Department for Business, Innovation and Skills",19/04/2011,Conference and Exhibition Services (Programme),Business & Skills Group - Advanced Manufacturing Industries,UK TRADE & INVESTMENT,1024723,1500
"Department for Business, Innovation and Skills","Department for Business, Innovation and Skills",06/04/2011,Capital Grants - Other,Business & Skills Group - Advanced Manufacturing Industries,INNOVITS (UK CENTRE OF EXCELLENCE FOR TRANSPORT TELEMATICS AND SUSTAINABLE MOBILTY),1024254,1142318
"Department for Business, Innovation and Skills","Department for Business, Innovation and Skills",13/04/2011,Telecommunications,Business & Skills Group - Advanced Manufacturing Industries,BT UK BUSINESS ACCOUNTS,1024749,67.68
"Department for Business, Innovation and Skills","Department for Business, Innovation and Skills",13/04/2011,Telecommunications,Business & Skills Group - Advanced Manufacturing Industries,BT UK BUSINESS ACCOUNTS,1024749,-11.47
"Department for Business, Innovation and Skills","Department for Business, Innovation and Skills",14/04/2011,Hotels Overseas,Business & Skills Group - Advanced Manufacturing Industries,"Personal Expense, Name Witheld.",10277107,164.8
"Department for Business, Innovation and Skills","Department for Business, Innovation and Skills",14/04/2011,Other Overseas Travel & Subsistence,Business & Skills Group - Advanced Manufacturing Industries,"Personal Expense, Name Witheld.",10277107,87.29
"Department for Business, Innovation and Skills","Department for Business, Innovation and Skills",27/04/2011,Rail Fares Overseas,Business & Skills Group - Advanced Manufacturing Industries,"Personal Expense, Name Witheld.",10277285,3.21
"Department for Business, Innovation and Skills","Department for Business, Innovation and Skills",27/04/2011,Subsistence Payments Overseas,Business & Skills Group - Advanced Manufacturing Industries,"Personal Expense, Name Witheld.",10277285,14.21
"Department for Business, Innovation and Skills","Department for Business, Innovation and Skills",27/04/2011,Rail Fares Overseas,Business & Skills Group - Advanced Manufacturing Industries,"Personal Expense, Name Witheld.",10277286,3.22
"Department for Business, Innovation and Skills","Department for Business, Innovation and Skills",27/04/2011,Subsistence Payments Overseas,Business & Skills Group - Advanced Manufacturing Industries,"Personal Expense, Name Witheld.",10277286,13.76
"Department for Business, Innovation and Skills","Department for Business, Innovation and Skills",27/04/2011,Subsistence Payments Overseas,Business & Skills Group - Advanced Manufacturing Industries,"Personal Expense, Name Witheld.",10277287,53.52
"Department for Business, Innovation and Skills","Department for Business, Innovation and Skills",27/04/2011,Other Overseas Travel & Subsistence,Business & Skills Group - Advanced Manufacturing Industries,"Personal Expense, Name Witheld.",10277287,10
"Department for Business, Innovation and Skills","Department for Business, Innovation and Skills",27/04/2011,Rail Fares Overseas,Business & Skills Group - Advanced Manufacturing Industries,"Personal Expense, Name Witheld.",10277288,3.08
"Department for Business, Innovation and Skills","Department for Business, Innovation and Skills",27/04/2011,Subsistence Payments Overseas,Business & Skills Group - Advanced Manufacturing Industries,"Personal Expense, Name Witheld.",10277288,16.77
"Department for Business, Innovation and Skills","Department for Business, Innovation and Skills",27/04/2011,Rail Fares Overseas,Business & Skills Group - Advanced Manufacturing Industries,"Personal Expense, Name Witheld.",10277289,3.08
"Department for Business, Innovation and Skills","Department for Business, Innovation and Skills",27/04/2011,Subsistence Payments Overseas,Business & Skills Group - Advanced Manufacturing Industries,"Personal Expense, Name Witheld.",10277289,14.46
"Department for Business, Innovation and Skills","Department for Business, Innovation and Skills",08/04/2011,Grants - Current - Other,Business & Skills Group - Advanced Manufacturing Industries,CENEX,1024368,25000
"Department for Business, Innovation and Skills","Department for Business, Innovation and Skills",04/04/2011,Economic Consultancy and Research,Business & Skills Group - Advanced Manufacturing Industries,RICARDO PLC,1023833,20000
"Department for Business, Innovation and Skills","Department for Business, Innovation and Skills",19/04/2011,Economic Consultancy and Research,Business & Skills Group - Advanced Manufacturing Industries,E4TECH (UK) LTD,1025146,20000
"Department for Business, Innovation and Skills","Department for Business, Innovation and Skills",19/04/2011,Grants - Current - Other,Business & Skills Group - Advanced Manufacturing Industries,CENEX,1025306,23697.55
"Department for Business, Innovation and Skills","Department for Business, Innovation and Skills",07/04/2011,External Legal Advice,Business & Skills Group - Advanced Manufacturing Industries,HOGAN LOVELLS INTERNATIONAL LLP,1024232,13260.2
"Department for Business, Innovation and Skills","Department for Business, Innovation and Skills",15/04/2011,Publications (Programme),Business & Skills Group - Advanced Manufacturing Industries,REED BUSINESS INFORMATION LTD,1024944,10194
"Department for Business, Innovation and Skills","Department for Business, Innovation and Skills",20/04/2011,Taxis- Overseas (Programme),Business & Skills Group - Advanced Manufacturing Industries,"Personal Expense, Name Witheld.",10277199,35.48
"Department for Business, Innovation and Skills","Department for Business, Innovation and Skills",20/04/2011,Mileage Allowances - Overseas (Programme),Business & Skills Group - Advanced Manufacturing Industries,"Personal Expense, Name Witheld.",10277199,38.4
"Department for Business, Innovation and Skills","Department for Business, Innovation and Skills",20/04/2011,Hotels- Overseas  (Programme),Business & Skills Group - Advanced Manufacturing Industries,"Personal Expense, Name Witheld.",10277199,217.63
"Department for Business, Innovation and Skills","Department for Business, Innovation and Skills",20/04/2011,Subsistence Payments- Overseas (Programme),Business & Skills Group - Advanced Manufacturing Industries,"Personal Expense, Name Witheld.",10277199,11.86
"Department for Business, Innovation and Skills","Department for Business, Innovation and Skills",20/04/2011,Other Overseas Travel & Subsistence (Programme),Business & Skills Group - Advanced Manufacturing Industries,"Personal Expense, Name Witheld.",10277199,117.94
"Department for Business, Innovation and Skills","Department for Business, Innovation and Skills",19/04/2011,Technical Advice / Services & Support,Business & Skills Group - Advanced Manufacturing Industries,DELOITTE MCS LTD,1025312,9600
"Department for Business, Innovation and Skills","Department for Business, Innovation and Skills",20/04/2011,Technical Advice / Services & Support,Business & Skills Group - Advanced Manufacturing Industries,PROF NICK CUMPSTY,1025344,7000
"Department for Business, Innovation and Skills","Department for Business, Innovation and Skills",26/04/2011,Other Staff Costs,Business & Skills Group - Advanced Manufacturing Industries,"Personal Expense, Name Witheld.",10277221,143.41
"Department for Business, Innovation and Skills","Department for Business, Innovation and Skills",26/04/2011,Other Staff Costs,Business & Skills Group - Advanced Manufacturing Industries,"Personal Expense, Name Witheld.",10277222,95.8
"Department for Business, Innovation and Skills","Department for Business, Innovation and Skills",26/04/2011,Other Staff Costs,Business & Skills Group - Advanced Manufacturing Industries,"Personal Expense, Name Witheld.",10277223,202.38
"Department for Business, Innovation and Skills","Department for Business, Innovation and Skills",26/04/2011,Other Staff Costs,Business & Skills Group - Advanced Manufacturing Industries,"Personal Expense, Name Witheld.",10277224,167.75
"Department for Business, Innovation and Skills","Department for Business, Innovation and Skills",26/04/2011,Other Staff Costs,Business & Skills Group - Advanced Manufacturing Industries,"Personal Expense, Name Witheld.",10277225,154.58
"Department for Business, Innovation and Skills","Department for Business, Innovation and Skills",26/04/2011,Other Staff Costs,Business & Skills Group - Advanced Manufacturing Industries,"Personal Expense, Name Witheld.",10277226,194.61
"Department for Business, Innovation and Skills","Department for Business, Innovation and Skills",26/04/2011,Other Staff Costs,Business & Skills Group - Advanced Manufacturing Industries,"Personal Expense, Name Witheld.",10277227,172.45
"Department for Business, Innovation and Skills","Department for Business, Innovation and Skills",26/04/2011,Other Staff Costs,Business & Skills Group - Advanced Manufacturing Industries,"Personal Expense, Name Witheld.",10277228,270.56
"Department for Business, Innovation and Skills","Department for Business, Innovation and Skills",26/04/2011,Other Staff Costs,Business & Skills Group - Advanced Manufacturing Industries,"Personal Expense, Name Witheld.",10277229,186.41
"Department for Business, Innovation and Skills","Department for Business, Innovation and Skills",26/04/2011,Other Staff Costs,Business & Skills Group - Advanced Manufacturing Industries,"Personal Expense, Name Witheld.",10277230,155
"Department for Business, Innovation and Skills","Department for Business, Innovation and Skills",26/04/2011,Other Staff Costs,Business & Skills Group - Advanced Manufacturing Industries,"Personal Expense, Name Witheld.",10277231,67.27
"Department for Business, Innovation and Skills","Department for Business, Innovation and Skills",26/04/2011,Other Staff Costs,Business & Skills Group - Advanced Manufacturing Industries,"Personal Expense, Name Witheld.",10277232,171.5
"Department for Business, Innovation and Skills","Department for Business, Innovation and Skills",26/04/2011,Other Staff Costs,Business & Skills Group - Advanced Manufacturing Industries,"Personal Expense, Name Witheld.",10277233,187.13
"Department for Business, Innovation and Skills","Department for Business, Innovation and Skills",26/04/2011,Other Staff Costs,Business & Skills Group - Advanced Manufacturing Industries,"Personal Expense, Name Witheld.",10277234,229.97
"Department for Business, Innovation and Skills","Department for Business, Innovation and Skills",26/04/2011,Other Staff Costs,Business & Skills Group - Advanced Manufacturing Industries,"Personal Expense, Name Witheld.",10277235,188.58
"Department for Business, Innovation and Skills","Department for Business, Innovation and Skills",26/04/2011,Other Staff Costs,Business & Skills Group - Advanced Manufacturing Industries,"Personal Expense, Name Witheld.",10277236,240.99
"Department for Business, Innovation and Skills","Department for Business, Innovation and Skills",26/04/2011,Other Staff Costs,Business & Skills Group - Advanced Manufacturing Industries,"Personal Expense, Name Witheld.",10277237,35.05
"Department for Business, Innovation and Skills","Department for Business, Innovation and Skills",26/04/2011,Other Staff Costs,Business & Skills Group - Advanced Manufacturing Industries,"Personal Expense, Name Witheld.",10277238,50.03
"Department for Business, Innovation and Skills","Department for Business, Innovation and Skills",06/04/2011,Cash Expenditure during the Year - Other Programme Provisions,Business & Skills Group - Advanced Manufacturing Industries,THOMPSONS SOLICITORS,1023596,2845.95
"Department for Business, Innovation and Skills","Department for Business, Innovation and Skills",01/04/2011,Cash Expenditure during the Year - Other Programme Provisions,Business & Skills Group - Advanced Manufacturing Industries,LAMPORT BASSITT SOLICITORS,1023601,883.2
"Department for Business, Innovation and Skills","Department for Business, Innovation and Skills",12/04/2011,Cash Expenditure during the Year - Other Programme Provisions,Business & Skills Group - Advanced Manufacturing Industries,THOMPSONS SOLICITORS,1024249,1754.2
"Department for Business, Innovation and Skills","Department for Business, Innovation and Skills",12/04/2011,Cash Expenditure during the Year - Other Programme Provisions,Business & Skills Group - Advanced Manufacturing Industries,THOMPSONS SOLICITORS,1024258,4240.08
"Department for Business, Innovation and Skills","Department for Business, Innovation and Skills",19/04/2011,Cash Expenditure during the Year - Other Programme Provisions,Business & Skills Group - Advanced Manufacturing Industries,OLIVER & CO SOLICITORS LTD,1025096,1979.8
"Department for Business, Innovation and Skills","Department for Business, Innovation and Skills",19/04/2011,Cash Expenditure during the Year - Other Programme Provisions,Business & Skills Group - Advanced Manufacturing Industries,IMPERIUM LAW LLP,1025254,3582.6
"Department for Business, Innovation and Skills","Department for Business, Innovation and Skills",07/04/2011, Grants - Non Statutory - Current - Other,Business & Skills Group - Advanced Manufacturing Industries,NORTHWEST REGIONAL DEVELOPMENT AGENCY,1024273,144108
"Department for Business, Innovation and Skills","Department for Business, Innovation and Skills",07/04/2011, Grants - Non Statutory - Current - Other,Business & Skills Group - Advanced Manufacturing Industries,ONE NORTH EAST,1024287,63610.08
"Department for Business, Innovation and Skills","Department for Business, Innovation and Skills",26/04/2011,Capital Grants - Other,Business & Skills Group - Advanced Manufacturing Industries,SOUTH WEST OF ENGLAND REGIONAL DEVELOPMENT AGENCY,1025616,1300000
"Department for Business, Innovation and Skills","Department for Business, Innovation and Skills",07/04/2011, Grants - Non Statutory - Current - Other,Business & Skills Group - Advanced Manufacturing Industries,NORTHWEST REGIONAL DEVELOPMENT AGENCY,1024271,142674
"Department for Business, Innovation and Skills","Department for Business, Innovation and Skills",07/04/2011,Rail Fares,Business & Skills Group - Advanced Manufacturing Industries,"Personal Expense, Name Witheld.",10276998,100.8
"Department for Business, Innovation and Skills","Department for Business, Innovation and Skills",20/04/2011,Rail Fares,Business & Skills Group - Advanced Manufacturing Industries,"Personal Expense, Name Witheld.",10277200,100.8
"Department for Business, Innovation and Skills","Department for Business, Innovation and Skills",18/04/2011,Capital Grants - Other,Business & Skills Group - Advanced Manufacturing Industries,THE QUEENS UNIVERSITY OF BELFAST,1025017,485655.22
"Department for Business, Innovation and Skills","Department for Business, Innovation and Skills",05/04/2011, Grants - Non Statutory - Current - Other,Business & Skills Group - Advanced Manufacturing Industries,PPMA LTD,1023973,5000
"Department for Business, Innovation and Skills","Department for Business, Innovation and Skills",08/04/2011,Outsourced Technical Support (Programme),Business & Skills Group - Advanced Manufacturing Industries,NETWORKERS RECRUITMENT SERVICES LTD T/A NETWORKERS INTERNATIONAL PLC,1024109,11000
"Department for Business, Innovation and Skills","Department for Business, Innovation and Skills",13/04/2011,Capital Grants - Other,Business & Skills Group - Advanced Manufacturing Industries,ONE NORTH EAST,1024808,629221.62
"Department for Business, Innovation and Skills","Department for Business, Innovation and Skills",13/04/2011,Capital Grants - Other,Business & Skills Group - Advanced Manufacturing Industries,ONE NORTH EAST,1024809,397892.83
"Department for Business, Innovation and Skills","Department for Business, Innovation and Skills",13/04/2011,Capital Grants - Other,Business & Skills Group - Advanced Manufacturing Industries,ONE NORTH EAST,1024810,540039.87
"Department for Business, Innovation and Skills","Department for Business, Innovation and Skills",13/04/2011,Capital Grants - Other,Business & Skills Group - Advanced Manufacturing Industries,ONE NORTH EAST,1024813,1223367.13
"Department for Business, Innovation and Skills","Department for Business, Innovation and Skills",13/04/2011,Capital Grants - Other,Business & Skills Group - Advanced Manufacturing Industries,ONE NORTH EAST,1024815,939750.8
"Department for Business, Innovation and Skills","Department for Business, Innovation and Skills",13/04/2011,Capital Grants - Other,Business & Skills Group - Advanced Manufacturing Industries,ONE NORTH EAST,1024817,562207.35
"Department for Business, Innovation and Skills","Department for Business, Innovation and Skills",13/04/2011,Capital Grants - Other,Business & Skills Group - Advanced Manufacturing Industries,ONE NORTH EAST,1024819,559379.41
"Department for Business, Innovation and Skills","Department for Business, Innovation and Skills",13/04/2011,Capital Grants - Other,Business & Skills Group - Advanced Manufacturing Industries,ONE NORTH EAST,1024820,502339.57
"Department for Business, Innovation and Skills","Department for Business, Innovation and Skills",13/04/2011,Capital Grants - Other,Business & Skills Group - Advanced Manufacturing Industries,ONE NORTH EAST,1024821,542059.54
"Department for Business, Innovation and Skills","Department for Business, Innovation and Skills",13/04/2011,Capital Grants - Other,Business & Skills Group - Advanced Manufacturing Industries,ONE NORTH EAST,1024823,2315280.71
"Department for Business, Innovation and Skills","Department for Business, Innovation and Skills",08/04/2011,Capital Grants - Other,Business & Skills Group - Advanced Manufacturing Industries,Department of Energy & Climate Change,1024280,1475224
"Department for Business, Innovation and Skills","Department for Business, Innovation and Skills",19/04/2011,Capital Grants - Other,Business & Skills Group - Advanced Manufacturing Industries,Department of Energy & Climate Change,1024434,925633.23
"Department for Business, Innovation and Skills","Department for Business, Innovation and Skills",01/04/2011,Technical Advice / Services & Support,Business & Skills Group - Advanced Manufacturing Industries,MCKINSEY AND COMPANY,1023652,130000
"Department for Business, Innovation and Skills","Department for Business, Innovation and Skills",01/04/2011,Technical Advice / Services & Support,Business & Skills Group - Advanced Manufacturing Industries,MCKINSEY AND COMPANY,1023653,288330
"Department for Business, Innovation and Skills","Department for Business, Innovation and Skills",01/04/2011,Economic Consultancy & Research,Business & Skills Group - Advanced Manufacturing Industries,KNOWLEDGE MATRIX LTD,1023656,6700
"Department for Business, Innovation and Skills","Department for Business, Innovation and Skills",01/04/2011,Hire of Conference Facilities,Business & Skills Group - Advanced Manufacturing Industries,KIRSTY HAMILTON,1023671,750
"Department for Business, Innovation and Skills","Department for Business, Innovation and Skills",01/04/2011,Conference and Exhibition Services,Business & Skills Group - Advanced Manufacturing Industries,NATIONAL SCHOOL OF GOVERNMENT (CMPS),1023708,9750
"Department for Business, Innovation and Skills","Department for Business, Innovation and Skills",06/04/2011,Technical Advice / Services & Support,Business & Skills Group - Advanced Manufacturing Industries,SLAUGHTER AND MAY,1024163,18096.76
"Department for Business, Innovation and Skills","Department for Business, Innovation and Skills",06/04/2011,Rail Fares,Business & Skills Group - Advanced Manufacturing Industries,"Personal Expense, Name Witheld.",10276943,7.1
"Department for Business, Innovation and Skills","Department for Business, Innovation and Skills",06/04/2011,Taxis Overseas,Business & Skills Group - Advanced Manufacturing Industries,"Personal Expense, Name Witheld.",10276943,38.04
"Department for Business, Innovation and Skills","Department for Business, Innovation and Skills",06/04/2011,Subsistence Payments Overseas,Business & Skills Group - Advanced Manufacturing Industries,"Personal Expense, Name Witheld.",10276943,2.96
"Department for Business, Innovation and Skills","Department for Business, Innovation and Skills",06/04/2011,Other Overseas Travel & Subsistence,Business & Skills Group - Advanced Manufacturing Industries,"Personal Expense, Name Witheld.",10276943,25.22
"Department for Business, Innovation and Skills","Department for Business, Innovation and Skills",01/04/2011,Enforcement,Business & Skills Group - Advanced Manufacturing Industries,ITSA LTD,1023795,960
"Department for Business, Innovation and Skills","Department for Business, Innovation and Skills",14/04/2011,Purchase of Research Material,Business & Skills Group - Advanced Manufacturing Industries,SUFFOLK COUNTY COUNCIL,1024895,2589.6
"Department for Business, Innovation and Skills","Department for Business, Innovation and Skills",20/04/2011,Technical Advice / Services & Support,Business & Skills Group - Advanced Manufacturing Industries,LGC LTD,1025374,9626.4
"Department for Business, Innovation and Skills","Department for Business, Innovation and Skills",07/04/2011,Rail Fares,Business & Skills Group - Advanced Manufacturing Industries,"Personal Expense, Name Witheld.",10276995,3.8
"Department for Business, Innovation and Skills","Department for Business, Innovation and Skills",07/04/2011,Subsistence Payments Overseas,Business & Skills Group - Advanced Manufacturing Industries,"Personal Expense, Name Witheld.",10276995,26.63
"Department for Business, Innovation and Skills","Department for Business, Innovation and Skills",07/04/2011,Other Overseas Travel & Subsistence,Business & Skills Group - Advanced Manufacturing Industries,"Personal Expense, Name Witheld.",10276995,6.47
"Department for Business, Innovation and Skills","Department for Business, Innovation and Skills",20/04/2011,Rail Fares,Business & Skills Group - Advanced Manufacturing Industries,"Personal Expense, Name Witheld.",10277206,54.5
"Department for Business, Innovation and Skills","Department for Business, Innovation and Skills",20/04/2011,Other UK Travel & Subsistence,Business & Skills Group - Advanced Manufacturing Industries,"Personal Expense, Name Witheld.",10277206,2.2
"Department for Business, Innovation and Skills","Department for Business, Innovation and Skills",26/04/2011,Hospitality - UK,Business & Skills Group - Advanced Manufacturing Industries,"Personal Expense, Name Witheld.",10277252,14.03
"Department for Business, Innovation and Skills","Department for Business, Innovation and Skills",27/04/2011,Rail Fares Overseas,Business & Skills Group - Advanced Manufacturing Industries,"Personal Expense, Name Witheld.",10277291,4.77
"Department for Business, Innovation and Skills","Department for Business, Innovation and Skills",27/04/2011,Subsistence Payments Overseas,Business & Skills Group - Advanced Manufacturing Industries,"Personal Expense, Name Witheld.",10277291,22.61
"Department for Business, Innovation and Skills","Department for Business, Innovation and Skills",27/04/2011,Other Overseas Travel & Subsistence,Business & Skills Group - Advanced Manufacturing Industries,"Personal Expense, Name Witheld.",10277291,10
"Department for Business, Innovation and Skills","Department for Business, Innovation and Skills",27/04/2011,Rail Fares,Business & Skills Group - Advanced Manufacturing Industries,"Personal Expense, Name Witheld.",10277293,1.9
"Department for Business, Innovation and Skills","Department for Business, Innovation and Skills",27/04/2011,Other UK Travel & Subsistence,Business & Skills Group - Advanced Manufacturing Industries,"Personal Expense, Name Witheld.",10277293,3.3
"Department for Business, Innovation and Skills","Department for Business, Innovation and Skills",27/04/2011,Rail Fares Overseas,Business & Skills Group - Advanced Manufacturing Industries,"Personal Expense, Name Witheld.",10277293,6.19
"Department for Business, Innovation and Skills","Department for Business, Innovation and Skills",27/04/2011,Hotels Overseas,Business & Skills Group - Advanced Manufacturing Industries,"Personal Expense, Name Witheld.",10277293,280.55
"Department for Business, Innovation and Skills","Department for Business, Innovation and Skills",27/04/2011,Subsistence Payments Overseas,Business & Skills Group - Advanced Manufacturing Industries,"Personal Expense, Name Witheld.",10277293,82.79
"Department for Business, Innovation and Skills","Department for Business, Innovation and Skills",27/04/2011,Other Overseas Travel & Subsistence,Business & Skills Group - Advanced Manufacturing Industries,"Personal Expense, Name Witheld.",10277293,40.99
"Department for Business, Innovation and Skills","Department for Business, Innovation and Skills",28/04/2011,Taxis,Business & Skills Group - Advanced Manufacturing Industries,"Personal Expense, Name Witheld.",10277316,20
"Department for Business, Innovation and Skills","Department for Business, Innovation and Skills",28/04/2011,Rail Fares Overseas,Business & Skills Group - Advanced Manufacturing Industries,"Personal Expense, Name Witheld.",10277316,2.2
"Department for Business, Innovation and Skills","Department for Business, Innovation and Skills",28/04/2011,Rail Fares Overseas,Business & Skills Group - Advanced Manufacturing Industries,"Personal Expense, Name Witheld.",10277316,10.9
"Department for Business, Innovation and Skills","Department for Business, Innovation and Skills",28/04/2011,Air Fares Overseas,Business & Skills Group - Advanced Manufacturing Industries,"Personal Expense, Name Witheld.",10277316,13.15
"Department for Business, Innovation and Skills","Department for Business, Innovation and Skills",28/04/2011,Taxis Overseas,Business & Skills Group - Advanced Manufacturing Industries,"Personal Expense, Name Witheld.",10277316,86.68
"Department for Business, Innovation and Skills","Department for Business, Innovation and Skills",28/04/2011,Hotels Overseas,Business & Skills Group - Advanced Manufacturing Industries,"Personal Expense, Name Witheld.",10277316,278.49
"Department for Business, Innovation and Skills","Department for Business, Innovation and Skills",28/04/2011,Subsistence Payments Overseas,Business & Skills Group - Advanced Manufacturing Industries,"Personal Expense, Name Witheld.",10277316,145.49
"Department for Business, Innovation and Skills","Department for Business, Innovation and Skills",28/04/2011,Other Overseas Travel & Subsistence,Business & Skills Group - Advanced Manufacturing Industries,"Personal Expense, Name Witheld.",10277316,354.49
"Department for Business, Innovation and Skills","Department for Business, Innovation and Skills",04/04/2011,Technical Support,Business & Skills Group - Advanced Manufacturing Industries,TRADING STANDARDS SOUTH EAST LTD,1023112,15000
"Department for Business, Innovation and Skills","Department for Business, Innovation and Skills",01/04/2011,Technical Support,Business & Skills Group - Advanced Manufacturing Industries,DERBY CITY COUNCIL,1023814,1516.72
"Department for Business, Innovation and Skills","Department for Business, Innovation and Skills",01/04/2011,Technical Support,Business & Skills Group - Advanced Manufacturing Industries,TRADING STANDARDS INSTITUTE (TSI),1023817,8378
"Department for Business, Innovation and Skills","Department for Business, Innovation and Skills",12/04/2011,Technical Support,Business & Skills Group - Advanced Manufacturing Industries,LONDON BOROUGH OF LAMBETH,1024229,3642.96
"Department for Business, Innovation and Skills","Department for Business, Innovation and Skills",20/04/2011,Outsourced Technical Support (Programme),Business & Skills Group - Advanced Manufacturing Industries,UKAS,1025100,9950
"Department for Business, Innovation and Skills","Department for Business, Innovation and Skills",13/04/2011,Stationery,Business & Skills Group - Advanced Manufacturing Industries,OFFICE DEPOT UK LTD,1024649,222.48
"Department for Business, Innovation and Skills","Department for Business, Innovation and Skills",12/04/2011,Hire of Agency Staff (Clerical/Secretariat/Other),Business & Skills Group - Advanced Manufacturing Industries,ADECCO UK LTD,1024737,568.98
"Department for Business, Innovation and Skills","Department for Business, Innovation and Skills",13/04/2011,Hire of Agency Staff (Clerical/Secretariat/Other),Business & Skills Group - Advanced Manufacturing Industries,ADECCO UK LTD,1024789,695.51
"Department for Business, Innovation and Skills","Department for Business, Innovation and Skills",19/04/2011,Hire of Agency Staff (Clerical/Secretariat/Other),Business & Skills Group - Advanced Manufacturing Industries,ADECCO UK LTD,1025282,571.32
"Department for Business, Innovation and Skills","Department for Business, Innovation and Skills",19/04/2011,Hire of Agency Staff (Clerical/Secretariat/Other),Business & Skills Group - Advanced Manufacturing Industries,ADECCO UK LTD,1025284,696.1
"Department for Business, Innovation and Skills","Department for Business, Innovation and Skills",20/04/2011,Hire of Agency Staff (Clerical/Secretariat/Other),Business & Skills Group - Advanced Manufacturing Industries,ADECCO UK LTD,1025301,696.1
"Department for Business, Innovation and Skills","Department for Business, Innovation and Skills",20/04/2011,Hire of Agency Staff (Clerical/Secretariat/Other),Business & Skills Group - Advanced Manufacturing Industries,ADECCO UK LTD,1025304,588.29
"Department for Business, Innovation and Skills","Department for Business, Innovation and Skills",14/04/2011,Mileage Allowances,Business & Skills Group - Advanced Manufacturing Industries,"Personal Expense, Name Witheld.",10277105,82.4
"Department for Business, Innovation and Skills","Department for Business, Innovation and Skills",14/04/2011,Other UK Travel & Subsistence,Business & Skills Group - Advanced Manufacturing Industries,"Personal Expense, Name Witheld.",10277105,6
"Department for Business, Innovation and Skills","Department for Business, Innovation and Skills",01/04/2011,Sponsorship Support,Business & Skills Group - Information Economy,DEPARTMENT FOR CULTURE MEDIA AND SPORT,1023501,5000000
"Department for Business, Innovation and Skills","Department for Business, Innovation and Skills",06/04/2011,Non Grant-in-Aid Funding of Bodies (Departmental and Non-Departmental),Business & Skills Group - Information Economy,OFCOM,1024089,289318
"Department for Business, Innovation and Skills","Department for Business, Innovation and Skills",06/04/2011,Non Grant-in-Aid Funding of Bodies (Departmental and Non-Departmental),Business & Skills Group - Information Economy,OFCOM,1024081,44000
"Department for Business, Innovation and Skills","Department for Business, Innovation and Skills",06/04/2011,Non Grant-in-Aid Funding of Bodies (Departmental and Non-Departmental),Business & Skills Group - Information Economy,OFCOM,1024081,190818
"Department for Business, Innovation and Skills","Department for Business, Innovation and Skills",06/04/2011,Non Grant-in-Aid Funding of Bodies (Departmental and Non-Departmental),Business & Skills Group - Information Economy,OFCOM,1024091,49765
"Department for Business, Innovation and Skills","Department for Business, Innovation and Skills",01/04/2011,Taxis,Business & Skills Group - Information Economy,"Personal Expense, Name Witheld.",10276874,30
"Department for Business, Innovation and Skills","Department for Business, Innovation and Skills",01/04/2011,Other UK Travel & Subsistence,Business & Skills Group - Information Economy,"Personal Expense, Name Witheld.",10276874,6.2
"Department for Business, Innovation and Skills","Department for Business, Innovation and Skills",01/04/2011,Hotels Overseas,Business & Skills Group - Information Economy,"Personal Expense, Name Witheld.",10276874,136.77
"Department for Business, Innovation and Skills","Department for Business, Innovation and Skills",01/04/2011,Subsistence Payments Overseas,Business & Skills Group - Information Economy,"Personal Expense, Name Witheld.",10276874,39.49
"Department for Business, Innovation and Skills","Department for Business, Innovation and Skills",04/04/2011,Other UK Travel & Subsistence,Business & Skills Group - Information Economy,"Personal Expense, Name Witheld.",10276899,6
"Department for Business, Innovation and Skills","Department for Business, Innovation and Skills",04/04/2011,Telecommunications,Business & Skills Group - Information Economy,"Personal Expense, Name Witheld.",10276899,3.99
"Department for Business, Innovation and Skills","Department for Business, Innovation and Skills",04/04/2011,Stationery,Business & Skills Group - Information Economy,"Personal Expense, Name Witheld.",10276899,22.4
"Department for Business, Innovation and Skills","Department for Business, Innovation and Skills",04/04/2011,Other UK Travel & Subsistence,Business & Skills Group - Information Economy,"Personal Expense, Name Witheld.",10276916,16
"Department for Business, Innovation and Skills","Department for Business, Innovation and Skills",04/04/2011,Rail Fares Overseas,Business & Skills Group - Information Economy,"Personal Expense, Name Witheld.",10276916,464
"Department for Business, Innovation and Skills","Department for Business, Innovation and Skills",04/04/2011,Air Fares Overseas,Business & Skills Group - Information Economy,"Personal Expense, Name Witheld.",10276916,314.8
"Department for Business, Innovation and Skills","Department for Business, Innovation and Skills",04/04/2011,Subsistence Payments Overseas,Business & Skills Group - Information Economy,"Personal Expense, Name Witheld.",10276916,550.49
"Department for Business, Innovation and Skills","Department for Business, Innovation and Skills",06/04/2011,Other UK Travel & Subsistence,Business & Skills Group - Information Economy,"Personal Expense, Name Witheld.",10276969,6.2
"Department for Business, Innovation and Skills","Department for Business, Innovation and Skills",06/04/2011,Taxis Overseas,Business & Skills Group - Information Economy,"Personal Expense, Name Witheld.",10276969,30
"Department for Business, Innovation and Skills","Department for Business, Innovation and Skills",06/04/2011,Hotels Overseas,Business & Skills Group - Information Economy,"Personal Expense, Name Witheld.",10276969,152.33
"Department for Business, Innovation and Skills","Department for Business, Innovation and Skills",06/04/2011,Subsistence Payments Overseas,Business & Skills Group - Information Economy,"Personal Expense, Name Witheld.",10276969,80.26
"Department for Business, Innovation and Skills","Department for Business, Innovation and Skills",08/04/2011,Other UK Travel & Subsistence,Business & Skills Group - Information Economy,"Personal Expense, Name Witheld.",10277016,3.8
"Department for Business, Innovation and Skills","Department for Business, Innovation and Skills",13/04/2011,Outsourced Programme Management Services,Business & Skills Group - Information Economy,AMPHLETT IP LTD t/a BRAND GUARDIANS IP,1024890,2530
"Department for Business, Innovation and Skills","Department for Business, Innovation and Skills",20/04/2011,Purchase of Completed Research,Business & Skills Group - Information Economy,AEA TECHNOLOGY ENVIRONMENT,1025373,9046.6
"Department for Business, Innovation and Skills","Department for Business, Innovation and Skills",18/04/2011,Internal Training,Business & Skills Group - Information Economy,CBI CENTRE POINT,1024446,120
"Department for Business, Innovation and Skills","Department for Business, Innovation and Skills",13/04/2011,Mileage Allowances Overseas,Business & Skills Group - Information Economy,DETICA LTD,1024765,35671.95
"Department for Business, Innovation and Skills","Department for Business, Innovation and Skills",20/04/2011,Technical Advice / Services & Support,Business & Skills Group - Information Economy,PRICEWATERHOUSECOOPERS LLP,1025372,53890
"Department for Business, Innovation and Skills","Department for Business, Innovation and Skills",01/04/2011,External Legal Advice,Business & Skills Group - Information Economy,GOVERNMENT ACTUARYS DEPARTMENT,1023770,3300.9
"Department for Business, Innovation and Skills","Department for Business, Innovation and Skills",20/04/2011,External Legal Advice,Business & Skills Group - Information Economy,GOVERNMENT ACTUARYS DEPARTMENT,1025402,763.1
"Department for Business, Innovation and Skills","Department for Business, Innovation and Skills",01/04/2011,Technical Advice / Services & Support,Business & Skills Group - Information Economy,THE BIT COMMONS LTD,1023772,12350
"Department for Business, Innovation and Skills","Department for Business, Innovation and Skills",12/04/2011,Other IT Costs,Business & Skills Group - Information Economy,DAISY COMMUNICATIONS LTD,1024710,21.22
"Department for Business, Innovation and Skills","Department for Business, Innovation and Skills",19/04/2011,Other IT Costs,Business & Skills Group - Information Economy,DAISY COMMUNICATIONS LTD,1025190,0.59
"Department for Business, Innovation and Skills","Department for Business, Innovation and Skills",19/04/2011,Other IT Costs,Business & Skills Group - Information Economy,DAISY COMMUNICATIONS LTD,1025190,35.4
"Department for Business, Innovation and Skills","Department for Business, Innovation and Skills",18/04/2011,Rail Fares,Business & Skills Group - Information Economy,"Personal Expense, Name Witheld.",10277168,5
"Department for Business, Innovation and Skills","Department for Business, Innovation and Skills",18/04/2011,Rail Fares Overseas,Business & Skills Group - Information Economy,"Personal Expense, Name Witheld.",10277168,19.79
"Department for Business, Innovation and Skills","Department for Business, Innovation and Skills",18/04/2011,Hotels Overseas,Business & Skills Group - Information Economy,"Personal Expense, Name Witheld.",10277168,108.87
"Department for Business, Innovation and Skills","Department for Business, Innovation and Skills",18/04/2011,Subsistence Payments Overseas,Business & Skills Group - Information Economy,"Personal Expense, Name Witheld.",10277168,14.65
"Department for Business, Innovation and Skills","Department for Business, Innovation and Skills",01/04/2011,Purchase of Completed Research,Business & Skills Group - Information Economy,REGENERIS CONSULTING LTD,1023774,13184
"Department for Business, Innovation and Skills","Department for Business, Innovation and Skills",01/04/2011,Rail Fares Overseas,Business & Skills Group - Information Economy,"Personal Expense, Name Witheld.",10276873,6.46
"Department for Business, Innovation and Skills","Department for Business, Innovation and Skills",01/04/2011,Hotels Overseas,Business & Skills Group - Information Economy,"Personal Expense, Name Witheld.",10276873,200.88
"Department for Business, Innovation and Skills","Department for Business, Innovation and Skills",01/04/2011,Subsistence Payments Overseas,Business & Skills Group - Information Economy,"Personal Expense, Name Witheld.",10276873,37.16
"Department for Business, Innovation and Skills","Department for Business, Innovation and Skills",01/04/2011,Other Overseas Travel & Subsistence,Business & Skills Group - Information Economy,"Personal Expense, Name Witheld.",10276873,10.01
"Department for Business, Innovation and Skills","Department for Business, Innovation and Skills",18/04/2011,Taxis,Business & Skills Group - Information Economy,"Personal Expense, Name Witheld.",10277173,4
"Department for Business, Innovation and Skills","Department for Business, Innovation and Skills",01/04/2011,International Subscriptions,Business & Skills Group - Information Economy,DIGITAL VIDEO BROADCASTING,1023210,7366.46
"Department for Business, Innovation and Skills","Department for Business, Innovation and Skills",01/04/2011, Grants - Non Statutory - Current - Other,Business & Skills Group - Information Economy,ONE NORTH EAST,1023278,232859.86
"Department for Business, Innovation and Skills","Department for Business, Innovation and Skills",15/04/2011, Grants - Non Statutory - Current - Other,Business & Skills Group - Information Economy,ONE NORTH EAST,1024646,243247.59
"Department for Business, Innovation and Skills","Department for Business, Innovation and Skills",15/04/2011,Capital Grants - Other,Business & Skills Group - Information Economy,ONE NORTH EAST,1024646,2519.8
"Department for Business, Innovation and Skills","Department for Business, Innovation and Skills",15/04/2011,Capital Grants - Other,Business & Skills Group - Information Economy,ONE NORTH EAST,1024646,0.47
"Department for Business, Innovation and Skills","Department for Business, Innovation and Skills",08/04/2011,Grants - Current - Other,Business & Skills Group - Information Economy,NATIONAL MICROELECTRONICS INSTITUTE,1024394,25000
"Department for Business, Innovation and Skills","Department for Business, Innovation and Skills",15/04/2011,Consultancy Advice Provided From Third Parties,Business & Skills Group - Information Economy,UNIVERSITY OF SUSSEX,1024801,10000
"Department for Business, Innovation and Skills","Department for Business, Innovation and Skills",08/04/2011,Sponsorship Support,Business & Skills Group - Advanced Manufacturing Industries,COI COMMUNICATIONS,1023355,14973.25
"Department for Business, Innovation and Skills","Department for Business, Innovation and Skills",08/04/2011,Hire of Office Equipment (Programme),Business & Skills Group - Advanced Manufacturing Industries,POPULOUS LTD,1024423,1089.6
"Department for Business, Innovation and Skills","Department for Business, Innovation and Skills",19/04/2011,Hire of Agency Staff (Professional/Management),Business & Skills Group - Advanced Manufacturing Industries,CONSTRUCTION INDUSTRY COUNCIL,1025313,11759.16
"Department for Business, Innovation and Skills","Department for Business, Innovation and Skills",04/04/2011,Publications,Business & Skills Group - Advanced Manufacturing Industries,JONES YARRELL LEADENHALL,1023806,39.1
"Department for Business, Innovation and Skills","Department for Business, Innovation and Skills",07/04/2011,Publications,Business & Skills Group - Advanced Manufacturing Industries,JONES YARRELL LEADENHALL,1024095,13.96
"Department for Business, Innovation and Skills","Department for Business, Innovation and Skills",28/04/2011,Mobile Phones,Business & Skills Group - Economic Development Directorate,VODAFONE LTD,1025839,44.84
"Department for Business, Innovation and Skills","Department for Business, Innovation and Skills",06/04/2011,Coaching,Business & Skills Group - Economic Development Directorate,TRAINING PATHS LTD,1024133,595
"Department for Business, Innovation and Skills","Department for Business, Innovation and Skills",14/04/2011,Rail Fares,Business & Skills Group - Economic Development Directorate,"Personal Expense, Name Witheld.",10277109,4
"Department for Business, Innovation and Skills","Department for Business, Innovation and Skills",14/04/2011,Rail Fares Overseas,Business & Skills Group - Economic Development Directorate,"Personal Expense, Name Witheld.",10277109,6.97
"Department for Business, Innovation and Skills","Department for Business, Innovation and Skills",14/04/2011,Taxis Overseas,Business & Skills Group - Economic Development Directorate,"Personal Expense, Name Witheld.",10277109,32.37
"Department for Business, Innovation and Skills","Department for Business, Innovation and Skills",14/04/2011,Subsistence Payments Overseas,Business & Skills Group - Economic Development Directorate,"Personal Expense, Name Witheld.",10277109,5.66
"Department for Business, Innovation and Skills","Department for Business, Innovation and Skills",14/04/2011,Other Overseas Travel & Subsistence,Business & Skills Group - Economic Development Directorate,"Personal Expense, Name Witheld.",10277109,20
"Department for Business, Innovation and Skills","Department for Business, Innovation and Skills",14/04/2011,Rail Fares,Business & Skills Group - Economic Development Directorate,"Personal Expense, Name Witheld.",10277112,8
"Department for Business, Innovation and Skills","Department for Business, Innovation and Skills",14/04/2011,Hotels,Business & Skills Group - Economic Development Directorate,"Personal Expense, Name Witheld.",10277112,188.95
"Department for Business, Innovation and Skills","Department for Business, Innovation and Skills",14/04/2011,Subsistence Payments,Business & Skills Group - Economic Development Directorate,"Personal Expense, Name Witheld.",10277112,42.7
"Department for Business, Innovation and Skills","Department for Business, Innovation and Skills",15/04/2011,Hotels Overseas,Business & Skills Group - Economic Development Directorate,"Personal Expense, Name Witheld.",10277157,25.85
"Department for Business, Innovation and Skills","Department for Business, Innovation and Skills",15/04/2011,Subsistence Payments Overseas,Business & Skills Group - Economic Development Directorate,"Personal Expense, Name Witheld.",10277157,14.22
"Department for Business, Innovation and Skills","Department for Business, Innovation and Skills",15/04/2011,Other Overseas Travel & Subsistence,Business & Skills Group - Economic Development Directorate,"Personal Expense, Name Witheld.",10277157,23
"Department for Business, Innovation and Skills","Department for Business, Innovation and Skills",27/04/2011,Rail Fares,Business & Skills Group - Economic Development Directorate,"Personal Expense, Name Witheld.",10277277,19.65
"Department for Business, Innovation and Skills","Department for Business, Innovation and Skills",27/04/2011,Air Fares,Business & Skills Group - Economic Development Directorate,"Personal Expense, Name Witheld.",10277277,788.38
"Department for Business, Innovation and Skills","Department for Business, Innovation and Skills",27/04/2011,Rail Fares Overseas,Business & Skills Group - Economic Development Directorate,"Personal Expense, Name Witheld.",10277277,6.89
"Department for Business, Innovation and Skills","Department for Business, Innovation and Skills",27/04/2011,Taxis Overseas,Business & Skills Group - Economic Development Directorate,"Personal Expense, Name Witheld.",10277277,39.67
"Department for Business, Innovation and Skills","Department for Business, Innovation and Skills",27/04/2011,Hotels Overseas,Business & Skills Group - Economic Development Directorate,"Personal Expense, Name Witheld.",10277277,151.98
"Department for Business, Innovation and Skills","Department for Business, Innovation and Skills",27/04/2011,Hotels Overseas,Business & Skills Group - Economic Development Directorate,"Personal Expense, Name Witheld.",10277277,242.39
"Department for Business, Innovation and Skills","Department for Business, Innovation and Skills",27/04/2011,Subsistence Payments Overseas,Business & Skills Group - Economic Development Directorate,"Personal Expense, Name Witheld.",10277277,127.67
"Department for Business, Innovation and Skills","Department for Business, Innovation and Skills",27/04/2011,Subsistence Payments Overseas,Business & Skills Group - Economic Development Directorate,"Personal Expense, Name Witheld.",10277277,77.77
"Department for Business, Innovation and Skills","Department for Business, Innovation and Skills",27/04/2011,Other Overseas Travel & Subsistence,Business & Skills Group - Economic Development Directorate,"Personal Expense, Name Witheld.",10277277,50
"Department for Business, Innovation and Skills","Department for Business, Innovation and Skills",01/04/2011,Capital Grants - Other,Business & Skills Group - Economic Development Directorate,NORTHWEST REGIONAL DEVELOPMENT AGENCY,1023360,5400000
"Department for Business, Innovation and Skills","Department for Business, Innovation and Skills",19/04/2011,Rail Fares,Business & Skills Group - Economic Development Directorate,HAYMARKET MEDIA GROUP LTD,1025135,284.5
"Department for Business, Innovation and Skills","Department for Business, Innovation and Skills",18/04/2011,Rail Fares,Business & Skills Group - Economic Development Directorate,"Personal Expense, Name Witheld.",10277178,164.5
"Department for Business, Innovation and Skills","Department for Business, Innovation and Skills",18/04/2011,Taxis,Business & Skills Group - Economic Development Directorate,"Personal Expense, Name Witheld.",10277178,12.6
"Department for Business, Innovation and Skills","Department for Business, Innovation and Skills",18/04/2011,Subsistence Payments,Business & Skills Group - Economic Development Directorate,"Personal Expense, Name Witheld.",10277178,6.49
"Department for Business, Innovation and Skills","Department for Business, Innovation and Skills",12/04/2011,Leadership & People Management Training,Business & Skills Group - Economic Development Directorate,THE WHITEHALL AND INDUSTRY GROUP,1024696,4850
"Department for Business, Innovation and Skills","Department for Business, Innovation and Skills",28/04/2011,Mobile Phones,Business & Skills Group - Economic Development Directorate,VODAFONE LTD,1025839,0.4
"Department for Business, Innovation and Skills","Department for Business, Innovation and Skills",28/04/2011,Mobile Phones,Business & Skills Group - Economic Development Directorate,VODAFONE LTD,1025839,0.5
"Department for Business, Innovation and Skills","Department for Business, Innovation and Skills",28/04/2011,Mobile Phones,Business & Skills Group - Economic Development Directorate,VODAFONE LTD,1025839,232.54
"Department for Business, Innovation and Skills","Department for Business, Innovation and Skills",01/04/2011,Stationery,Business & Skills Group - Economic Development Directorate,"Personal Expense, Name Witheld.",10276886,15.98
"Department for Business, Innovation and Skills","Department for Business, Innovation and Skills",08/04/2011,Mileage Allowances,Business & Skills Group - Economic Development Directorate,"Personal Expense, Name Witheld.",10277017,134
"Department for Business, Innovation and Skills","Department for Business, Innovation and Skills",08/04/2011,Hotels,Business & Skills Group - Economic Development Directorate,"Personal Expense, Name Witheld.",10277017,206
"Department for Business, Innovation and Skills","Department for Business, Innovation and Skills",08/04/2011,Subsistence Payments,Business & Skills Group - Economic Development Directorate,"Personal Expense, Name Witheld.",10277017,26
"Department for Business, Innovation and Skills","Department for Business, Innovation and Skills",06/04/2011,Publications,Business & Skills Group - RDA Transition and Closures,JONES YARRELL LEADENHALL,1023913,27.88
"Department for Business, Innovation and Skills","Department for Business, Innovation and Skills",18/04/2011,Technical Advice / Services & Support,Business & Skills Group - RDA Transition and Closures,J M W MOSAIC LTD,1025067,4200
"Department for Business, Innovation and Skills","Department for Business, Innovation and Skills",19/04/2011,Publications,Business & Skills Group - RDA Transition and Closures,COMPANIES HOUSE,1025137,4
"Department for Business, Innovation and Skills","Department for Business, Innovation and Skills",21/04/2011,Other Training Costs,Business & Skills Group - RDA Transition and Closures,THE WHITEHALL AND INDUSTRY GROUP,1025380,750
"Department for Business, Innovation and Skills","Department for Business, Innovation and Skills",28/04/2011,Mobile Phones,Business & Skills Group - RDA Transition and Closures,VODAFONE LTD,1025839,138.71
"Department for Business, Innovation and Skills","Department for Business, Innovation and Skills",28/04/2011,Mobile Phones,Business & Skills Group - RDA Transition and Closures,VODAFONE LTD,1025839,26.3
"Department for Business, Innovation and Skills","Department for Business, Innovation and Skills",14/04/2011,Capital Grants to Local Authorities - Asset Creation,Business & Skills Group - RDA Transition and Closures,THE LONDON DEVELOPMENT AGENCY LTD,1024547,7000000
"Department for Business, Innovation and Skills","Department for Business, Innovation and Skills",14/04/2011,London Development Agency - Current Statutory Grant,Business & Skills Group - RDA Transition and Closures,THE LONDON DEVELOPMENT AGENCY LTD,1024547,7000000
"Department for Business, Innovation and Skills","Department for Business, Innovation and Skills",14/04/2011,Grant in Aid - Current -Other,Business & Skills Group - RDA Transition and Closures,EAST MIDLANDS DEVELOPMENT AGENCY,1024537,10000000
"Department for Business, Innovation and Skills","Department for Business, Innovation and Skills",14/04/2011,Grant in Aid - Current -Other,Business & Skills Group - RDA Transition and Closures,ADVANTAGE WEST MIDLANDS,1024539,5000000
"Department for Business, Innovation and Skills","Department for Business, Innovation and Skills",14/04/2011,Grant in Aid - Current -Other,Business & Skills Group - RDA Transition and Closures,EAST OF ENGLAND DEVELOPMENT AGENCY (EEDA),1024542,15000000
"Department for Business, Innovation and Skills","Department for Business, Innovation and Skills",14/04/2011,Grant in Aid - Current -Other,Business & Skills Group - RDA Transition and Closures,ONE NORTH EAST,1024544,45000000
"Department for Business, Innovation and Skills","Department for Business, Innovation and Skills",14/04/2011,Grant in Aid - Current -Other,Business & Skills Group - RDA Transition and Closures,SOUTH EAST ENGLAND DEVELOPMENT AGENCY,1024546,7000000
"Department for Business, Innovation and Skills","Department for Business, Innovation and Skills",14/04/2011,Grant in Aid - Current -Other,Business & Skills Group - RDA Transition and Closures,YORKSHIRE FORWARD,1024550,10000000
"Department for Business, Innovation and Skills","Department for Business, Innovation and Skills",14/04/2011,Grant in Aid - Current -Other,Business & Skills Group - RDA Transition and Closures,SOUTH WEST OF ENGLAND REGIONAL DEVELOPMENT AGENCY,1024688,4500000
"Department for Business, Innovation and Skills","Department for Business, Innovation and Skills",14/04/2011,Grant in Aid - Current -Other,Business & Skills Group - RDA Transition and Closures,NORTHWEST REGIONAL DEVELOPMENT AGENCY,1024698,20000000
"Department for Business, Innovation and Skills","Department for Business, Innovation and Skills",04/04/2011,Publications,Market and Frameworks Group - Business Environment and Growth Directorate,JONES YARRELL LEADENHALL,1023798,39.1
"Department for Business, Innovation and Skills","Department for Business, Innovation and Skills",13/04/2011,Capital Grants - Other,Business & Skills Group - Life Sciences,STEVENAGE BIOSCIENCE PARK,1024693,255642
"Department for Business, Innovation and Skills","Department for Business, Innovation and Skills",13/04/2011,Capital Grants - Other,Business & Skills Group - Life Sciences,STEVENAGE BIOSCIENCE PARK,1024693,1267030
"Department for Business, Innovation and Skills","Department for Business, Innovation and Skills",13/04/2011,Capital Grants - Other,Business & Skills Group - Life Sciences,STEVENAGE BIOSCIENCE PARK,1024693,1700000
"Department for Business, Innovation and Skills","Department for Business, Innovation and Skills",13/04/2011,Capital Grants - Other,Business & Skills Group - Life Sciences,STEVENAGE BIOSCIENCE PARK,1024693,1100000
"Department for Business, Innovation and Skills","Department for Business, Innovation and Skills",13/04/2011,Capital Grants - Other,Business & Skills Group - Life Sciences,SCOTTISH ENTERPRISE,1024695,1361923.64
"Department for Business, Innovation and Skills","Department for Business, Innovation and Skills",13/04/2011,Capital Grants - Other,Business & Skills Group - Life Sciences,SCOTTISH ENTERPRISE,1024695,2040000
"Department for Business, Innovation and Skills","Department for Business, Innovation and Skills",11/04/2011,Non Grant-in-Aid Funding of Bodies (Departmental and Non-Departmental),Knowledge and Innovation Group - Innovation,NATIONAL MEASUREMENT OFFICE,1024615,6790000
"Department for Business, Innovation and Skills","Department for Business, Innovation and Skills",12/04/2011,Hire of Agency Staff (Clerical/Secretariat/Other),Knowledge and Innovation Group - Innovation,ADECCO UK LTD,1023542,705.62
"Department for Business, Innovation and Skills","Department for Business, Innovation and Skills",12/04/2011,Hire of Agency Staff (Clerical/Secretariat/Other),Knowledge and Innovation Group - Innovation,ADECCO UK LTD,1023542,53.69
"Department for Business, Innovation and Skills","Department for Business, Innovation and Skills",28/04/2011,Additions - Enterprise Equity Investments,Knowledge and Innovation Group - Innovation,BIS UK INNOVATION INVESTMENT FUND,1025929,200759.37
"Department for Business, Innovation and Skills","Department for Business, Innovation and Skills",20/04/2011,Business Management Advice,Knowledge and Innovation Group - Innovation,JERA CONSULTING LTD,1025355,4735.49
"Department for Business, Innovation and Skills","Department for Business, Innovation and Skills",20/04/2011,Business Management Advice,Knowledge and Innovation Group - Innovation,JERA CONSULTING LTD,1025355,53.1
"Department for Business, Innovation and Skills","Department for Business, Innovation and Skills",19/04/2011,Financial Advice and Services,Knowledge and Innovation Group - Innovation,CAPITAL FOR ENTERPRISE LTD,1024966,8333.33
"Department for Business, Innovation and Skills","Department for Business, Innovation and Skills",28/04/2011,IT Maintenance and Management Services,Knowledge and Innovation Group - Innovation,CTN,1025973,810
"Department for Business, Innovation and Skills","Department for Business, Innovation and Skills",11/04/2011,Hotels (Programme),Knowledge and Innovation Group - Innovation,HESPERIA VICTORIA UK LTD T/A HESPERIA LONDON VICTORIA,1024387,840
"Department for Business, Innovation and Skills","Department for Business, Innovation and Skills",01/04/2011,Economic Consultancy and Research,Knowledge and Innovation Group - Innovation,OECD ORGANISATION FOR ECONOMIC CO-OPERATION AND DEVELOPMENT,1023020,14920.5
"Department for Business, Innovation and Skills","Department for Business, Innovation and Skills",07/04/2011,Economic Consultancy and Research,Knowledge and Innovation Group - Innovation,OFFICE FOR NATIONAL STATISTICS,1024346,312
"Department for Business, Innovation and Skills","Department for Business, Innovation and Skills",11/04/2011,Rail Fares - Overseas (Programme),Knowledge and Innovation Group - Innovation,"Personal Expense, Name Witheld.",10277044,29.7
"Department for Business, Innovation and Skills","Department for Business, Innovation and Skills",11/04/2011,Air Fares  - Overseas (Programme),Knowledge and Innovation Group - Innovation,"Personal Expense, Name Witheld.",10277044,128.43
"Department for Business, Innovation and Skills","Department for Business, Innovation and Skills",11/04/2011,Taxis- Overseas (Programme),Knowledge and Innovation Group - Innovation,"Personal Expense, Name Witheld.",10277044,19.48
"Department for Business, Innovation and Skills","Department for Business, Innovation and Skills",11/04/2011,Hotels- Overseas  (Programme),Knowledge and Innovation Group - Innovation,"Personal Expense, Name Witheld.",10277044,329.29
"Department for Business, Innovation and Skills","Department for Business, Innovation and Skills",11/04/2011,Subsistence Payments- Overseas (Programme),Knowledge and Innovation Group - Innovation,"Personal Expense, Name Witheld.",10277044,46.01
"Department for Business, Innovation and Skills","Department for Business, Innovation and Skills",11/04/2011,Other Overseas Travel & Subsistence (Programme),Knowledge and Innovation Group - Innovation,"Personal Expense, Name Witheld.",10277044,30
"Department for Business, Innovation and Skills","Department for Business, Innovation and Skills",01/04/2011,Publications,Knowledge and Innovation Group - Innovation,JONES YARRELL LEADENHALL,1023799,19.55
"Department for Business, Innovation and Skills","Department for Business, Innovation and Skills",08/04/2011,Mobile Phones,Knowledge and Innovation Group - Innovation,EAST OF ENGLAND DEVELOPMENT AGENCY (EEDA),1024422,1051.23
"Department for Business, Innovation and Skills","Department for Business, Innovation and Skills",11/04/2011,Rail Fares Overseas,Knowledge and Innovation Group - Innovation,"Personal Expense, Name Witheld.",10277043,3.18
"Department for Business, Innovation and Skills","Department for Business, Innovation and Skills",11/04/2011,Subsistence Payments Overseas,Knowledge and Innovation Group - Innovation,"Personal Expense, Name Witheld.",10277043,40.4
"Department for Business, Innovation and Skills","Department for Business, Innovation and Skills",11/04/2011,Other Overseas Travel & Subsistence,Knowledge and Innovation Group - Innovation,"Personal Expense, Name Witheld.",10277043,10
"Department for Business, Innovation and Skills","Department for Business, Innovation and Skills",15/04/2011,Taxis,Knowledge and Innovation Group - Innovation,"Personal Expense, Name Witheld.",10277142,135
"Department for Business, Innovation and Skills","Department for Business, Innovation and Skills",15/04/2011,Other UK Travel & Subsistence,Knowledge and Innovation Group - Innovation,"Personal Expense, Name Witheld.",10277142,2.95
"Department for Business, Innovation and Skills","Department for Business, Innovation and Skills",15/04/2011,Taxis Overseas,Knowledge and Innovation Group - Innovation,"Personal Expense, Name Witheld.",10277142,9.9
"Department for Business, Innovation and Skills","Department for Business, Innovation and Skills",15/04/2011,Hotels Overseas,Knowledge and Innovation Group - Innovation,"Personal Expense, Name Witheld.",10277142,210.29
"Department for Business, Innovation and Skills","Department for Business, Innovation and Skills",15/04/2011,Subsistence Payments Overseas,Knowledge and Innovation Group - Innovation,"Personal Expense, Name Witheld.",10277142,15.85
"Department for Business, Innovation and Skills","Department for Business, Innovation and Skills",15/04/2011,Other Overseas Travel & Subsistence,Knowledge and Innovation Group - Innovation,"Personal Expense, Name Witheld.",10277142,26.21
"Department for Business, Innovation and Skills","Department for Business, Innovation and Skills",28/04/2011,Rail Fares,Knowledge and Innovation Group - Innovation,"Personal Expense, Name Witheld.",10277301,38.9
"Department for Business, Innovation and Skills","Department for Business, Innovation and Skills",28/04/2011,Taxis,Knowledge and Innovation Group - Innovation,"Personal Expense, Name Witheld.",10277301,17
"Department for Business, Innovation and Skills","Department for Business, Innovation and Skills",28/04/2011,Other UK Travel & Subsistence,Knowledge and Innovation Group - Innovation,"Personal Expense, Name Witheld.",10277301,27
"Department for Business, Innovation and Skills","Department for Business, Innovation and Skills",28/04/2011,Subsistence Payments Overseas,Knowledge and Innovation Group - Innovation,"Personal Expense, Name Witheld.",10277301,12.36
"Department for Business, Innovation and Skills","Department for Business, Innovation and Skills",28/04/2011,Other Overseas Travel & Subsistence,Knowledge and Innovation Group - Innovation,"Personal Expense, Name Witheld.",10277301,10
"Department for Business, Innovation and Skills","Department for Business, Innovation and Skills",28/04/2011,Rail Fares Overseas,Knowledge and Innovation Group - Innovation,"Personal Expense, Name Witheld.",10277302,3.19
"Department for Business, Innovation and Skills","Department for Business, Innovation and Skills",28/04/2011,Subsistence Payments Overseas,Knowledge and Innovation Group - Innovation,"Personal Expense, Name Witheld.",10277302,18.6
"Department for Business, Innovation and Skills","Department for Business, Innovation and Skills",28/04/2011,Other Overseas Travel & Subsistence,Knowledge and Innovation Group - Innovation,"Personal Expense, Name Witheld.",10277302,10
